Workbook

Sheet Info Sheet
B2: Automatic Arrear Calculator from January 01, 2021 to Today (31.12.2026)
B4: SN | C4: Employee Name | D4: Designation | E4: Arrear Detail | H4: Basic Pay | J4: PF Type | K4: ITax/TDS | M4: Month /Year | N4: DA Rate | Q4: HRA Rate
E5: Type | F5: From | G5: To | H5: Due | I5: Drawn | N5: Due | O5: Drawn | P5: Diff
B6: =IF(C6="","",COUNTA($C$6:C6)) -> 1 | C6: Pramod Kumar Saini | D6: Teacher | E6: Salary | F6: 2021-01-01 | G6: 2021-11-01 | H6: 47900 | I6: 45100 | J6: GPF 2004 | K6: 0.1 | M6: 2021-01-01 | N6: 17 | O6: 17 | P6: =N6-O6 -> 0 | Q6: 8
B7: =IF(C7="","",COUNTA($C$6:C7)) ->  | M7: 2021-02-01 | N7: 17 | O7: 17 | P7: 0 | Q7: 8
B8: =IF(C8="","",COUNTA($C$6:C8)) ->  | M8: 2021-03-01 | N8: 17 | O8: 17 | P8: 0 | Q8: 8
B9: =IF(C9="","",COUNTA($C$6:C9)) ->  | M9: 2021-04-01 | N9: 17 | O9: 17 | P9: 0 | Q9: 8
B10: =IF(C10="","",COUNTA($C$6:C10)) ->  | M10: 2021-05-01 | N10: 17 | O10: 17 | P10: 0 | Q10: 8
B11: =IF(C11="","",COUNTA($C$6:C11)) ->  | M11: 2021-06-01 | N11: 17 | O11: 17 | P11: 0 | Q11: 8
B12: =IF(C12="","",COUNTA($C$6:C12)) ->  | M12: 2021-07-01 | N12: 31 | O12: 17 | P12: 14 | Q12: 9
B13: =IF(C13="","",COUNTA($C$6:C13)) ->  | M13: 2021-08-01 | N13: 31 | O13: 17 | P13: 14 | Q13: 9
B14: =IF(C14="","",COUNTA($C$6:C14)) ->  | M14: 2021-09-01 | N14: 31 | O14: 17 | P14: 14 | Q14: 9
B15: =IF(C15="","",COUNTA($C$6:C15)) ->  | M15: 2021-10-01 | N15: 31 | O15: 31 | P15: 0 | Q15: 9
B16: =IF(C16="","",COUNTA($C$6:C16)) ->  | M16: 2021-11-01 | N16: 31 | O16: 31 | P16: 0 | Q16: 9
B17: =IF(C17="","",COUNTA($C$6:C17)) ->  | M17: 2021-12-01 | N17: 31 | O17: 31 | P17: 0 | Q17: 9
B18: =IF(C18="","",COUNTA($C$6:C18)) ->  | M18: 2022-01-01 | N18: 34 | O18: 31 | P18: 3 | Q18: 9
B19: =IF(C19="","",COUNTA($C$6:C19)) ->  | M19: 2022-02-01 | N19: 34 | O19: 31 | P19: 3 | Q19: 9
B20: =IF(C20="","",COUNTA($C$6:C20)) ->  | M20: 2022-03-01 | N20: 34 | O20: 31 | P20: 3 | Q20: 9
M21: 2022-04-01 | N21: 34 | O21: 34 | P21: 0 | Q21: 9
M22: 2022-05-01 | N22: 34 | O22: 34 | P22: 0 | Q22: 9
M23: 2022-06-01 | N23: 34 | O23: 34 | P23: 0 | Q23: 9
M24: 2022-07-01 | N24: 38 | O24: 34 | P24: 4 | Q24: 9
M25: 2022-08-01 | N25: 38 | O25: 34 | P25: 4 | Q25: 9
M26: 2022-09-01 | N26: 38 | O26: 34 | P26: 4 | Q26: 9
M27: 2022-10-01 | N27: 38 | O27: 38 | P27: 0 | Q27: 9
M28: 2022-11-01 | N28: 38 | O28: 38 | P28: 0 | Q28: 9
M29: 2022-12-01 | N29: 38 | O29: 38 | P29: 0 | Q29: 9
M30: 2023-01-01 | N30: 42 | O30: 38 | P30: 4 | Q30: 9
M31: 2023-02-01 | N31: 42 | O31: 38 | P31: 4 | Q31: 9
M32: 2023-03-01 | N32: 42 | O32: 38 | P32: 4 | Q32: 9
M33: 2023-04-01 | N33: 42 | O33: 42 | P33: 0 | Q33: 9
M34: 2023-05-01 | N34: 42 | O34: 42 | P34: 0 | Q34: 9
M35: 2023-06-01 | N35: 42 | O35: 42 | P35: 0 | Q35: 9
M36: 2023-07-01 | N36: 46 | O36: 46 | P36: 0 | Q36: 9
M37: 2023-08-01 | N37: 46 | O37: 46 | P37: 0 | Q37: 9
M38: 2023-09-01 | N38: 46 | O38: 46 | P38: =N38-O38 -> 0 | Q38: 9
M39: 2023-10-01 | N39: 46 | O39: 46 | P39: 0 | Q39: 9
M40: 2023-11-01 | N40: 46 | O40: 46 | P40: 0 | Q40: 9
M41: 2023-12-01 | N41: 46 | O41: 46 | P41: 0 | Q41: 9
M42: 2024-01-01 | N42: 50 | O42: 50 | P42: 0 | Q42: 9
M43: 2024-02-01 | N43: 50 | O43: 50 | P43: 0 | Q43: 9
M44: 2024-03-01 | N44: 50 | O44: 50 | P44: 0 | Q44: 9
M45: 2024-04-01 | N45: 50 | O45: 50 | P45: 0 | Q45: 9
M46: 2024-05-01 | N46: 50 | O46: 50 | P46: 0 | Q46: 9
M47: 2024-06-01 | N47: 50 | O47: 50 | P47: 0 | Q47: 9
M48: 2024-07-01 | P48: 0
M49: 2024-08-01 | P49: 0
M50: 2024-09-01 | P50: 0
M51: 2024-10-01 | P51: 0
M52: 2024-11-01 | P52: 0
M53: 2024-12-01 | P53: 0
M54: 2025-01-01 | P54: 0
M55: 2025-02-01 | P55: 0
M56: 2025-03-01 | P56: 0
M57: 2025-04-01 | P57: 0
M58: 2025-05-01 | P58: 0
M59: 2025-06-01 | P59: 0
M60: 2025-07-01 | P60: 0
M61: 2025-08-01 | P61: 0
M62: 2025-09-01 | P62: 0
M63: 2025-10-01 | P63: 0
M64: 2025-11-01 | P64: 0
M65: 2025-12-01 | P65: 0
M66: 2026-01-01 | P66: 0
M67: 2026-02-01 | P67: 0
M68: 2026-03-01 | P68: 0
M69: 2026-04-01 | P69: 0
M70: 2026-05-01 | P70: =N70-O70 -> 0
M71: 2026-06-01 | P71: =N71-O71 -> 0
M72: 2026-07-01 | P72: 0
M73: 2026-08-01 | P73: 0
M74: 2026-09-01 | P74: 0
M75: 2026-10-01 | P75: 0
M76: 2026-11-01 | P76: 0
M77: 2026-12-01 | P77: 0

Sheet Sheet2 (hidden)
B4: ='Arrear Sheet'!B3 -> 1 | C4: =VLOOKUP(B4,'Info Sheet'!$B$6:$K$20,4,0)&" Arrear from "&TEXT(VLOOKUP(B4,'Info Sheet'!$B$6:$K$20,5,0),"DD-MMM-YYYY")& " to "&TEXT(VLOOKUP(B4,'Info Sheet'!$B$6:$K$20,6,0),"MMM-YYYY") -> Salary Arrear from 01-Jan-2021 to Nov-2021 | X4: =IFERROR(VLOOKUP(B4,'Info Sheet'!$B$6:$K$20,9,0),"") -> GPF 2004 | AF4: RGHS
B5: =IFERROR(VLOOKUP(B4,'Info Sheet'!$B$6:$K$20,2,0),"") -> Pramod Kumar Saini | F5: =IFERROR(VLOOKUP(B4,'Info Sheet'!$B$6:$K$20,3,0),"") -> Teacher | J5: =IFERROR(VLOOKUP($B$4,'Info Sheet'!$B$6:$K$20,10,0),"") -> 0.1
B6: =T6 -> 1-2021 | C6: =IFERROR(IF(T6="",0,IF($N$11=$R$6,$M$12,0)),"") -> 47900 | D6: =ROUND(C6*'Info Sheet'!N6/100,0) -> 8143 | E6: =ROUND(C6*'Info Sheet'!Q6/100,0) -> 3832 | F6: =IFERROR(IF(T6="",0,IF($N$11=$R$6,$N$12,0)),"") -> 45100 | G6: =ROUND(F6*'Info Sheet'!N6/100,0) -> 7667 | H6: =ROUND(F6*'Info Sheet'!Q6/100,0) -> 3608 | J6: =ROUND((SUM(C6:E6)-SUM(F6:H6))*$J$5,0) -> 350 | M6: =DAY(IFERROR(VLOOKUP($B$4,saini,5,0),"Error")) -> 1 | N6: =VLOOKUP(N9,Q6:S77,3,0) -> 30 | O6: 1 | P6: 2021 | Q6: =O6&"-"&P6 -> 1-2021 | R6: 1 | S6: 31 | T6: =IFERROR(IF($N$10<R6,"",IF($N$11<=R6,Q6,"")),"") -> 1-2021 | V6: =IF(C6>=$M$13,C6,0) -> 47900 | W6: =IF(F6>=$N$13,F6,0) -> 45100 | X6: =IF(V6>51500,3575,IF(V6>38500,2850,IF(V6>28500,2100,IF(V6>23000,1625,IF(V6>0,1450,0))))) -> 2850 | Y6: =IF(V6>167000,10500,IF(V6>116000,8900,IF(V6>80000,6150,IF(V6>72000,4800,IF(V6>62000,4200,X6))))) -> 2850 | Z6: =ROUND(C6*'Info Sheet'!P6/100,0) -> 0 | AA6: =Y6+Z6 -> 2850 | AB6: =IF(W6>51500,3575,IF(W6>38500,2850,IF(W6>28500,2100,IF(W6>23000,1625,IF(W6>0,1450,0))))) -> 2850 | AC6: =IF(W6>167000,10500,IF(W6>116000,8900,IF(W6>80000,6150,IF(W6>72000,4800,IF(W6>62000,4200,AB6))))) -> 2850 | AD6: =ROUND(F6*'Info Sheet'!P6/100,0) -> 0 | AE6: =AC6+AD6 -> 2850 | AF6: =IF(V6>54000,875,IF(V6>33500,658,IF(V6>18000,440,IF(V6>0,265,0)))) -> 658 | AG6: =IF(W6>54000,875,IF(W6>33500,658,IF(W6>18000,440,IF(W6>0,265,0)))) -> 658
B7: =T7 -> 2-2021 | C7: =IFERROR(IF(T7="",0,IF(C6>0,$M$13,$M$12)),"") -> 47900 | D7: =ROUND(C7*'Info Sheet'!N7/100,0) -> 8143 | E7: =ROUND(C7*'Info Sheet'!Q7/100,0) -> 3832 | F7: =IFERROR(IF(T7="",0,IF(F6>0,$N$13,$N$12)),"") -> 45100 | G7: =ROUND(F7*'Info Sheet'!N7/100,0) -> 7667 | H7: =ROUND(F7*'Info Sheet'!Q7/100,0) -> 3608 | J7: 350 | M7: =MONTH(IFERROR(VLOOKUP($B$4,saini,5,0),"Error")) -> 1 | N7: =MONTH(IFERROR(VLOOKUP($B$4,saini,6,0),"Error")) -> 11 | O7: 2 | P7: 2021 | Q7: =O7&"-"&P7 -> 2-2021 | R7: 2 | S7: 28 | T7: 2-2021 | V7: =IF(C7>=$M$13,C7,0) -> 47900 | W7: =IF(F7>=$N$13,F7,0) -> 45100 | X7: =IF(V7>51500,3575,IF(V7>38500,2850,IF(V7>28500,2100,IF(V7>23000,1625,IF(V7>0,1450,0))))) -> 2850 | Y7: =IF(V7>167000,10500,IF(V7>116000,8900,IF(V7>80000,6150,IF(V7>72000,4800,IF(V7>62000,4200,X7))))) -> 2850 | Z7: =ROUND(C7*'Info Sheet'!P7/100,0) -> 0 | AA7: =Y7+Z7 -> 2850 | AB7: =IF(W7>51500,3575,IF(W7>38500,2850,IF(W7>28500,2100,IF(W7>23000,1625,IF(W7>0,1450,0))))) -> 2850 | AC7: =IF(W7>167000,10500,IF(W7>116000,8900,IF(W7>80000,6150,IF(W7>72000,4800,IF(W7>62000,4200,AB7))))) -> 2850 | AD7: =ROUND(F7*'Info Sheet'!P7/100,0) -> 0 | AE7: =AC7+AD7 -> 2850 | AF7: =IF(V7>54000,875,IF(V7>33500,658,IF(V7>18000,440,IF(V7>0,265,0)))) -> 658 | AG7: =IF(W7>54000,875,IF(W7>33500,658,IF(W7>18000,440,IF(W7>0,265,0)))) -> 658
B8: 3-2021 | C8: =IFERROR(IF(T8="",0,IF(C7>0,$M$13,$M$12)),"") -> 47900 | D8: =ROUND(C8*'Info Sheet'!N8/100,0) -> 8143 | E8: =ROUND(C8*'Info Sheet'!Q8/100,0) -> 3832 | F8: =IFERROR(IF(T8="",0,IF(F7>0,$N$13,$N$12)),"") -> 45100 | G8: =ROUND(F8*'Info Sheet'!N8/100,0) -> 7667 | H8: =ROUND(F8*'Info Sheet'!Q8/100,0) -> 3608 | J8: 350 | M8: =YEAR(IFERROR(VLOOKUP($B$4,saini,5,0),"Error")) -> 2021 | N8: =YEAR(IFERROR(VLOOKUP($B$4,saini,6,0),"Error")) -> 2021 | O8: 3 | P8: 2021 | Q8: 3-2021 | R8: 3 | S8: 31 | T8: 3-2021 | V8: 47900 | W8: 45100 | X8: 2850 | Y8: 2850 | Z8: =ROUND(C8*'Info Sheet'!P8/100,0) -> 0 | AA8: 2850 | AB8: 2850 | AC8: 2850 | AD8: =ROUND(F8*'Info Sheet'!P8/100,0) -> 0 | AE8: 2850 | AF8: 658 | AG8: 658
B9: 4-2021 | C9: =IFERROR(IF(T9="",0,IF(C8>0,$M$13,$M$12)),"") -> 47900 | D9: =ROUND(C9*'Info Sheet'!N9/100,0) -> 8143 | E9: =ROUND(C9*'Info Sheet'!Q9/100,0) -> 3832 | F9: =IFERROR(IF(T9="",0,IF(F8>0,$N$13,$N$12)),"") -> 45100 | G9: =ROUND(F9*'Info Sheet'!N9/100,0) -> 7667 | H9: =ROUND(F9*'Info Sheet'!Q9/100,0) -> 3608 | J9: 350 | M9: =M7&"-"&M8 -> 1-2021 | N9: =N7&"-"&N8 -> 11-2021 | O9: 4 | P9: 2021 | Q9: 4-2021 | R9: 4 | S9: 30 | T9: 4-2021 | V9: 47900 | W9: 45100 | X9: 2850 | Y9: 2850 | Z9: =ROUND(C9*'Info Sheet'!P9/100,0) -> 0 | AA9: 2850 | AB9: 2850 | AC9: 2850 | AD9: =ROUND(F9*'Info Sheet'!P9/100,0) -> 0 | AE9: 2850 | AF9: 658 | AG9: 658
B10: 5-2021 | C10: =IFERROR(IF(T10="",0,IF(C9>0,$M$13,$M$12)),"") -> 47900 | D10: =ROUND(C10*'Info Sheet'!N10/100,0) -> 8143 | E10: =ROUND(C10*'Info Sheet'!Q10/100,0) -> 3832 | F10: =IFERROR(IF(T10="",0,IF(F9>0,$N$13,$N$12)),"") -> 45100 | G10: =ROUND(F10*'Info Sheet'!N10/100,0) -> 7667 | H10: =ROUND(F10*'Info Sheet'!Q10/100,0) -> 3608 | J10: 350 | M10: =VLOOKUP(M9,Q6:S77,3,0)-M6+1 -> 31 | N10: =VLOOKUP(N9,Q6:S77,2,0) -> 11 | O10: 5 | P10: 2021 | Q10: 5-2021 | R10: 5 | S10: 31 | T10: 5-2021 | V10: 47900 | W10: 45100 | X10: 2850 | Y10: 2850 | Z10: =ROUND(C10*'Info Sheet'!P10/100,0) -> 0 | AA10: 2850 | AB10: 2850 | AC10: 2850 | AD10: =ROUND(F10*'Info Sheet'!P10/100,0) -> 0 | AE10: 2850 | AF10: 658 | AG10: 658
B11: 6-2021 | C11: =IFERROR(IF(T11="",0,IF(C10>0,$M$13,$M$12)),"") -> 47900 | D11: =ROUND(C11*'Info Sheet'!N11/100,0) -> 8143 | E11: =ROUND(C11*'Info Sheet'!Q11/100,0) -> 3832 | F11: =IFERROR(IF(T11="",0,IF(F10>0,$N$13,$N$12)),"") -> 45100 | G11: =ROUND(F11*'Info Sheet'!N11/100,0) -> 7667 | H11: =ROUND(F11*'Info Sheet'!Q11/100,0) -> 3608 | J11: 350 | M11: =VLOOKUP(M9,Q6:S77,3,0) -> 31 | N11: =VLOOKUP(M9,Q6:S77,2,0) -> 1 | O11: 6 | P11: 2021 | Q11: 6-2021 | R11: 6 | S11: 30 | T11: 6-2021 | V11: 47900 | W11: 45100 | X11: 2850 | Y11: 2850 | Z11: =ROUND(C11*'Info Sheet'!P11/100,0) -> 0 | AA11: 2850 | AB11: 2850 | AC11: 2850 | AD11: =ROUND(F11*'Info Sheet'!P11/100,0) -> 0 | AE11: 2850 | AF11: 658 | AG11: 658
B12: 7-2021 | C12: =IFERROR(IF(T12="",0,IF($N$11<7,$M$14,IF(C11>0,$M$13,$M$12))),"") -> 49300 | D12: =ROUND(C12*'Info Sheet'!N12/100,0) -> 15283 | E12: =ROUND(C12*'Info Sheet'!Q12/100,0) -> 4437 | F12: =IFERROR(IF(T12="",0,IF($N$11<7,$N$14,IF(F11>0,$N$13,$N$12))),"") -> 46500 | G12: =ROUND(F12*'Info Sheet'!N12/100,0) -> 14415 | H12: =ROUND(F12*'Info Sheet'!Q12/100,0) -> 4185 | J12: 392 | M12: =ROUND((M13/M11)*M10,0) -> 47900 | N12: =ROUND((N13/M11)*M10,0) -> 45100 | O12: 7 | P12: 2021 | Q12: 7-2021 | R12: 7 | S12: 31 | T12: 7-2021 | V12: 49300 | W12: 46500 | X12: 2850 | Y12: 2850 | Z12: =ROUND(C12*'Info Sheet'!P12/100,0) -> 6902 | AA12: 9752 | AB12: 2850 | AC12: 2850 | AD12: =ROUND(F12*'Info Sheet'!P12/100,0) -> 6510 | AE12: 9360 | AF12: 658 | AG12: 658
B13: 8-2021 | C13: 49300 | D13: =ROUND(C13*'Info Sheet'!N13/100,0) -> 15283 | E13: =ROUND(C13*'Info Sheet'!Q13/100,0) -> 4437 | F13: 46500 | G13: =ROUND(F13*'Info Sheet'!N13/100,0) -> 14415 | H13: =ROUND(F13*'Info Sheet'!Q13/100,0) -> 4185 | J13: 392 | M13: =IFERROR(VLOOKUP($B$4,saini,7,0),"Error") -> 47900 | N13: =IFERROR(VLOOKUP($B$4,saini,8,0),"Error") -> 45100 | O13: 8 | P13: 2021 | Q13: 8-2021 | R13: 8 | S13: 31 | T13: 8-2021 | V13: 49300 | W13: 46500 | X13: 2850 | Y13: 2850 | Z13: =ROUND(C13*'Info Sheet'!P13/100,0) -> 6902 | AA13: 9752 | AB13: 2850 | AC13: 2850 | AD13: =ROUND(F13*'Info Sheet'!P13/100,0) -> 6510 | AE13: 9360 | AF13: 658 | AG13: 658
B14: 9-2021 | C14: 49300 | D14: =ROUND(C14*'Info Sheet'!N14/100,0) -> 15283 | E14: =ROUND(C14*'Info Sheet'!Q14/100,0) -> 4437 | F14: 46500 | G14: =ROUND(F14*'Info Sheet'!N14/100,0) -> 14415 | H14: =ROUND(F14*'Info Sheet'!Q14/100,0) -> 4185 | J14: 392 | M14: =MROUND(M13*103%,100) -> 49300 | N14: 46500 | O14: 9 | P14: 2021 | Q14: 9-2021 | R14: 9 | S14: 30 | T14: 9-2021 | V14: 49300 | W14: 46500 | X14: 2850 | Y14: 2850 | Z14: =ROUND(C14*'Info Sheet'!P14/100,0) -> 6902 | AA14: 9752 | AB14: 2850 | AC14: 2850 | AD14: =ROUND(F14*'Info Sheet'!P14/100,0) -> 6510 | AE14: 9360 | AF14: 658 | AG14: 658
B15: 10-2021 | C15: 49300 | D15: =ROUND(C15*'Info Sheet'!N15/100,0) -> 15283 | E15: =ROUND(C15*'Info Sheet'!Q15/100,0) -> 4437 | F15: 46500 | G15: =ROUND(F15*'Info Sheet'!N15/100,0) -> 14415 | H15: =ROUND(F15*'Info Sheet'!Q15/100,0) -> 4185 | J15: 392 | M15: 50800 | N15: 47900 | O15: 10 | P15: 2021 | Q15: 10-2021 | R15: 10 | S15: 31 | T15: 10-2021 | V15: 49300 | W15: 46500 | X15: 2850 | Y15: 2850 | Z15: =ROUND(C15*'Info Sheet'!P15/100,0) -> 0 | AA15: 2850 | AB15: 2850 | AC15: 2850 | AD15: =ROUND(F15*'Info Sheet'!P15/100,0) -> 0 | AE15: 2850 | AF15: 658 | AG15: 658
B16: 11-2021 | C16: 49300 | D16: =ROUND(C16*'Info Sheet'!N16/100,0) -> 15283 | E16: =ROUND(C16*'Info Sheet'!Q16/100,0) -> 4437 | F16: 46500 | G16: =ROUND(F16*'Info Sheet'!N16/100,0) -> 14415 | H16: =ROUND(F16*'Info Sheet'!Q16/100,0) -> 4185 | J16: 392 | M16: 52300 | N16: 49300 | O16: 11 | P16: 2021 | Q16: 11-2021 | R16: 11 | S16: 30 | T16: 11-2021 | V16: 49300 | W16: 46500 | X16: 2850 | Y16: 2850 | Z16: =ROUND(C16*'Info Sheet'!P16/100,0) -> 0 | AA16: 2850 | AB16: 2850 | AC16: 2850 | AD16: =ROUND(F16*'Info Sheet'!P16/100,0) -> 0 | AE16: 2850 | AF16: 658 | AG16: 658
C17: 0 | D17: =ROUND(C17*'Info Sheet'!N17/100,0) -> 0 | E17: =ROUND(C17*'Info Sheet'!Q17/100,0) -> 0 | F17: 0 | G17: =ROUND(F17*'Info Sheet'!N17/100,0) -> 0 | H17: =ROUND(F17*'Info Sheet'!Q17/100,0) -> 0 | J17: 0 | M17: 53900 | N17: 50800 | O17: 12 | P17: 2021 | Q17: 12-2021 | R17: 12 | S17: 31 | V17: 0 | W17: 0 | X17: 0 | Y17: 0 | Z17: =ROUND(C17*'Info Sheet'!P17/100,0) -> 0 | AA17: 0 | AB17: 0 | AC17: 0 | AD17: =ROUND(F17*'Info Sheet'!P17/100,0) -> 0 | AE17: 0 | AF17: 0 | AG17: 0
C18: 0 | D18: =ROUND(C18*'Info Sheet'!N18/100,0) -> 0 | E18: =ROUND(C18*'Info Sheet'!Q18/100,0) -> 0 | F18: 0 | G18: =ROUND(F18*'Info Sheet'!N18/100,0) -> 0 | H18: =ROUND(F18*'Info Sheet'!Q18/100,0) -> 0 | J18: 0 | M18: 55500 | N18: 52300 | O18: 1 | P18: 2022 | Q18: 1-2022 | R18: 13 | S18: 31 | V18: 0 | W18: 0 | X18: 0 | Y18: 0 | Z18: =ROUND(C18*'Info Sheet'!P18/100,0) -> 0 | AA18: 0 | AB18: 0 | AC18: 0 | AD18: =ROUND(F18*'Info Sheet'!P18/100,0) -> 0 | AE18: 0 | AF18: 0 | AG18: 0
C19: 0 | D19: =ROUND(C19*'Info Sheet'!N19/100,0) -> 0 | E19: =ROUND(C19*'Info Sheet'!Q19/100,0) -> 0 | F19: 0 | G19: =ROUND(F19*'Info Sheet'!N19/100,0) -> 0 | H19: =ROUND(F19*'Info Sheet'!Q19/100,0) -> 0 | J19: 0 | M19: 57200 | N19: 53900 | O19: 2 | P19: 2022 | Q19: 2-2022 | R19: 14 | S19: 28 | V19: 0 | W19: 0 | X19: 0 | Y19: 0 | Z19: =ROUND(C19*'Info Sheet'!P19/100,0) -> 0 | AA19: 0 | AB19: 0 | AC19: 0 | AD19: =ROUND(F19*'Info Sheet'!P19/100,0) -> 0 | AE19: 0 | AF19: 0 | AG19: 0
C20: 0 | D20: =ROUND(C20*'Info Sheet'!N20/100,0) -> 0 | E20: =ROUND(C20*'Info Sheet'!Q20/100,0) -> 0 | F20: 0 | G20: =ROUND(F20*'Info Sheet'!N20/100,0) -> 0 | H20: =ROUND(F20*'Info Sheet'!Q20/100,0) -> 0 | J20: 0 | O20: 3 | P20: 2022 | Q20: 3-2022 | R20: 15 | S20: 31 | V20: 0 | W20: 0 | X20: 0 | Y20: 0 | Z20: =ROUND(C20*'Info Sheet'!P20/100,0) -> 0 | AA20: 0 | AB20: 0 | AC20: 0 | AD20: =ROUND(F20*'Info Sheet'!P20/100,0) -> 0 | AE20: 0 | AF20: 0 | AG20: 0
C21: 0 | D21: =ROUND(C21*'Info Sheet'!N21/100,0) -> 0 | E21: =ROUND(C21*'Info Sheet'!Q21/100,0) -> 0 | F21: 0 | G21: =ROUND(F21*'Info Sheet'!N21/100,0) -> 0 | H21: =ROUND(F21*'Info Sheet'!Q21/100,0) -> 0 | J21: 0 | O21: 4 | P21: 2022 | Q21: 4-2022 | R21: 16 | S21: 30 | V21: 0 | W21: 0 | X21: 0 | Y21: 0 | Z21: =ROUND(C21*'Info Sheet'!P21/100,0) -> 0 | AA21: 0 | AB21: 0 | AC21: 0 | AD21: =ROUND(F21*'Info Sheet'!P21/100,0) -> 0 | AE21: 0 | AF21: 0 | AG21: 0
C22: 0 | D22: =ROUND(C22*'Info Sheet'!N22/100,0) -> 0 | E22: =ROUND(C22*'Info Sheet'!Q22/100,0) -> 0 | F22: 0 | G22: =ROUND(F22*'Info Sheet'!N22/100,0) -> 0 | H22: =ROUND(F22*'Info Sheet'!Q22/100,0) -> 0 | J22: 0 | O22: 5 | P22: 2022 | Q22: 5-2022 | R22: 17 | S22: 31 | V22: 0 | W22: 0 | X22: 0 | Y22: 0 | Z22: =ROUND(C22*'Info Sheet'!P22/100,0) -> 0 | AA22: 0 | AB22: 0 | AC22: 0 | AD22: =ROUND(F22*'Info Sheet'!P22/100,0) -> 0 | AE22: 0 | AF22: 0 | AG22: 0
C23: 0 | D23: =ROUND(C23*'Info Sheet'!N23/100,0) -> 0 | E23: =ROUND(C23*'Info Sheet'!Q23/100,0) -> 0 | F23: 0 | G23: =ROUND(F23*'Info Sheet'!N23/100,0) -> 0 | H23: =ROUND(F23*'Info Sheet'!Q23/100,0) -> 0 | J23: 0 | O23: 6 | P23: 2022 | Q23: 6-2022 | R23: 18 | S23: 30 | V23: 0 | W23: 0 | X23: 0 | Y23: 0 | Z23: =ROUND(C23*'Info Sheet'!P23/100,0) -> 0 | AA23: 0 | AB23: 0 | AC23: 0 | AD23: =ROUND(F23*'Info Sheet'!P23/100,0) -> 0 | AE23: 0 | AF23: 0 | AG23: 0
C24: =IFERROR(IF(T24="",0,IF($N$11<7,$M$15,IF(AND($N$11>6,$N$11<19),$M$14,IF($N$11=$R$24,$M$12)))),"") -> 0 | D24: =ROUND(C24*'Info Sheet'!N24/100,0) -> 0 | E24: =ROUND(C24*'Info Sheet'!Q24/100,0) -> 0 | F24: =IFERROR(IF(T24="",0,IF($N$11<7,$N$15,IF(AND($N$11>6,$N$11<19),$N$14,IF($N$11=$R$24,$N$12)))),"") -> 0 | G24: =ROUND(F24*'Info Sheet'!N24/100,0) -> 0 | H24: =ROUND(F24*'Info Sheet'!Q24/100,0) -> 0 | J24: 0 | O24: 7 | P24: 2022 | Q24: 7-2022 | R24: 19 | S24: 31 | V24: 0 | W24: 0 | X24: 0 | Y24: 0 | Z24: =ROUND(C24*'Info Sheet'!P24/100,0) -> 0 | AA24: 0 | AB24: 0 | AC24: 0 | AD24: =ROUND(F24*'Info Sheet'!P24/100,0) -> 0 | AE24: 0 | AF24: 0 | AG24: 0
C25: =IFERROR(IF(T25="",0,IF($N$11<7,$M$15,IF(AND($N$11>6,$N$11<19),$M$14,IF(C24>0,$M$13,$M$12)))),"") -> 0 | D25: =ROUND(C25*'Info Sheet'!N25/100,0) -> 0 | E25: =ROUND(C25*'Info Sheet'!Q25/100,0) -> 0 | F25: =IFERROR(IF(T25="",0,IF($N$11<7,$N$15,IF(AND($N$11>6,$N$11<19),$N$14,IF(F24>0,$N$13,$N$12)))),"") -> 0 | G25: =ROUND(F25*'Info Sheet'!N25/100,0) -> 0 | H25: =ROUND(F25*'Info Sheet'!Q25/100,0) -> 0 | J25: 0 | O25: 8 | P25: 2022 | Q25: 8-2022 | R25: 20 | S25: 31 | V25: 0 | W25: 0 | X25: 0 | Y25: 0 | Z25: =ROUND(C25*'Info Sheet'!P25/100,0) -> 0 | AA25: 0 | AB25: 0 | AC25: 0 | AD25: =ROUND(F25*'Info Sheet'!P25/100,0) -> 0 | AE25: 0 | AF25: 0 | AG25: 0
C26: 0 | D26: =ROUND(C26*'Info Sheet'!N26/100,0) -> 0 | E26: =ROUND(C26*'Info Sheet'!Q26/100,0) -> 0 | F26: 0 | G26: =ROUND(F26*'Info Sheet'!N26/100,0) -> 0 | H26: =ROUND(F26*'Info Sheet'!Q26/100,0) -> 0 | J26: 0 | O26: 9 | P26: 2022 | Q26: 9-2022 | R26: 21 | S26: 30 | V26: 0 | W26: 0 | X26: 0 | Y26: 0 | Z26: =ROUND(C26*'Info Sheet'!P26/100,0) -> 0 | AA26: 0 | AB26: 0 | AC26: 0 | AD26: =ROUND(F26*'Info Sheet'!P26/100,0) -> 0 | AE26: 0 | AF26: 0 | AG26: 0
C27: 0 | D27: =ROUND(C27*'Info Sheet'!N27/100,0) -> 0 | E27: =ROUND(C27*'Info Sheet'!Q27/100,0) -> 0 | F27: 0 | G27: =ROUND(F27*'Info Sheet'!N27/100,0) -> 0 | H27: =ROUND(F27*'Info Sheet'!Q27/100,0) -> 0 | J27: 0 | O27: 10 | P27: 2022 | Q27: 10-2022 | R27: 22 | S27: 31 | V27: 0 | W27: 0 | X27: 0 | Y27: 0 | Z27: =ROUND(C27*'Info Sheet'!P27/100,0) -> 0 | AA27: 0 | AB27: 0 | AC27: 0 | AD27: =ROUND(F27*'Info Sheet'!P27/100,0) -> 0 | AE27: 0 | AF27: 0 | AG27: 0
C28: 0 | D28: =ROUND(C28*'Info Sheet'!N28/100,0) -> 0 | E28: =ROUND(C28*'Info Sheet'!Q28/100,0) -> 0 | F28: 0 | G28: =ROUND(F28*'Info Sheet'!N28/100,0) -> 0 | H28: =ROUND(F28*'Info Sheet'!Q28/100,0) -> 0 | J28: 0 | O28: 11 | P28: 2022 | Q28: 11-2022 | R28: 23 | S28: 30 | V28: 0 | W28: 0 | X28: 0 | Y28: 0 | Z28: =ROUND(C28*'Info Sheet'!P28/100,0) -> 0 | AA28: 0 | AB28: 0 | AC28: 0 | AD28: =ROUND(F28*'Info Sheet'!P28/100,0) -> 0 | AE28: 0 | AF28: 0 | AG28: 0
C29: 0 | D29: =ROUND(C29*'Info Sheet'!N29/100,0) -> 0 | E29: =ROUND(C29*'Info Sheet'!Q29/100,0) -> 0 | F29: 0 | G29: =ROUND(F29*'Info Sheet'!N29/100,0) -> 0 | H29: =ROUND(F29*'Info Sheet'!Q29/100,0) -> 0 | J29: 0 | O29: 12 | P29: 2022 | Q29: 12-2022 | R29: 24 | S29: 31 | V29: 0 | W29: 0 | X29: 0 | Y29: 0 | Z29: =ROUND(C29*'Info Sheet'!P29/100,0) -> 0 | AA29: 0 | AB29: 0 | AC29: 0 | AD29: =ROUND(F29*'Info Sheet'!P29/100,0) -> 0 | AE29: 0 | AF29: 0 | AG29: 0
C30: 0 | D30: =ROUND(C30*'Info Sheet'!N30/100,0) -> 0 | E30: =ROUND(C30*'Info Sheet'!Q30/100,0) -> 0 | F30: 0 | G30: =ROUND(F30*'Info Sheet'!N30/100,0) -> 0 | H30: =ROUND(F30*'Info Sheet'!Q30/100,0) -> 0 | J30: 0 | O30: 1 | P30: 2023 | Q30: 1-2023 | R30: 25 | S30: 31 | V30: 0 | W30: 0 | X30: 0 | Y30: 0 | Z30: =ROUND(C30*'Info Sheet'!P30/100,0) -> 0 | AA30: 0 | AB30: 0 | AC30: 0 | AD30: =ROUND(F30*'Info Sheet'!P30/100,0) -> 0 | AE30: 0 | AF30: 0 | AG30: 0
C31: 0 | D31: =ROUND(C31*'Info Sheet'!N31/100,0) -> 0 | E31: =ROUND(C31*'Info Sheet'!Q31/100,0) -> 0 | F31: 0 | G31: =ROUND(F31*'Info Sheet'!N31/100,0) -> 0 | H31: =ROUND(F31*'Info Sheet'!Q31/100,0) -> 0 | J31: 0 | O31: 2 | P31: 2023 | Q31: 2-2023 | R31: 26 | S31: 28 | V31: 0 | W31: 0 | X31: 0 | Y31: 0 | Z31: =ROUND(C31*'Info Sheet'!P31/100,0) -> 0 | AA31: 0 | AB31: 0 | AC31: 0 | AD31: =ROUND(F31*'Info Sheet'!P31/100,0) -> 0 | AE31: 0 | AF31: 0 | AG31: 0
C32: 0 | D32: =ROUND(C32*'Info Sheet'!N32/100,0) -> 0 | E32: =ROUND(C32*'Info Sheet'!Q32/100,0) -> 0 | F32: 0 | G32: =ROUND(F32*'Info Sheet'!N32/100,0) -> 0 | H32: =ROUND(F32*'Info Sheet'!Q32/100,0) -> 0 | J32: 0 | O32: 3 | P32: 2023 | Q32: 3-2023 | R32: 27 | S32: 31 | V32: 0 | W32: 0 | X32: 0 | Y32: 0 | Z32: =ROUND(C32*'Info Sheet'!P32/100,0) -> 0 | AA32: 0 | AB32: 0 | AC32: 0 | AD32: =ROUND(F32*'Info Sheet'!P32/100,0) -> 0 | AE32: 0 | AF32: 0 | AG32: 0
C33: 0 | D33: =ROUND(C33*'Info Sheet'!N33/100,0) -> 0 | E33: =ROUND(C33*'Info Sheet'!Q33/100,0) -> 0 | F33: 0 | G33: =ROUND(F33*'Info Sheet'!N33/100,0) -> 0 | H33: =ROUND(F33*'Info Sheet'!Q33/100,0) -> 0 | J33: 0 | O33: 4 | P33: 2023 | Q33: 4-2023 | R33: 28 | S33: 30 | V33: 0 | W33: 0 | X33: 0 | Y33: 0 | Z33: =ROUND(C33*'Info Sheet'!P33/100,0) -> 0 | AA33: 0 | AB33: 0 | AC33: 0 | AD33: =ROUND(F33*'Info Sheet'!P33/100,0) -> 0 | AE33: 0 | AF33: 0 | AG33: 0
C34: 0 | D34: =ROUND(C34*'Info Sheet'!N34/100,0) -> 0 | E34: =ROUND(C34*'Info Sheet'!Q34/100,0) -> 0 | F34: 0 | G34: =ROUND(F34*'Info Sheet'!N34/100,0) -> 0 | H34: =ROUND(F34*'Info Sheet'!Q34/100,0) -> 0 | J34: 0 | O34: 5 | P34: 2023 | Q34: 5-2023 | R34: 29 | S34: 31 | V34: 0 | W34: 0 | X34: 0 | Y34: 0 | Z34: =ROUND(C34*'Info Sheet'!P34/100,0) -> 0 | AA34: 0 | AB34: 0 | AC34: 0 | AD34: =ROUND(F34*'Info Sheet'!P34/100,0) -> 0 | AE34: 0 | AF34: 0 | AG34: 0
C35: 0 | D35: =ROUND(C35*'Info Sheet'!N35/100,0) -> 0 | E35: =ROUND(C35*'Info Sheet'!Q35/100,0) -> 0 | F35: 0 | G35: =ROUND(F35*'Info Sheet'!N35/100,0) -> 0 | H35: =ROUND(F35*'Info Sheet'!Q35/100,0) -> 0 | J35: 0 | O35: 6 | P35: 2023 | Q35: 6-2023 | R35: 30 | S35: 30 | V35: 0 | W35: 0 | X35: 0 | Y35: 0 | Z35: =ROUND(C35*'Info Sheet'!P35/100,0) -> 0 | AA35: 0 | AB35: 0 | AC35: 0 | AD35: =ROUND(F35*'Info Sheet'!P35/100,0) -> 0 | AE35: 0 | AF35: 0 | AG35: 0
C36: =IFERROR(IF(T36="",0,IF($N$11<7,$M$16,IF(AND($N$11>6,$N$11<19),$M$15,IF(AND($N$11>18,$N$11<31),$M$14,IF($N$11=$R$36,$M$12))))),"") -> 0 | D36: =ROUND(C36*'Info Sheet'!N36/100,0) -> 0 | E36: =ROUND(C36*'Info Sheet'!Q36/100,0) -> 0 | F36: =IFERROR(IF(T36="",0,IF($N$11<7,$N$16,IF(AND($N$11>6,$N$11<19),$N$15,IF(AND($N$11>18,$N$11<31),$N$14,IF($N$11=$R$36,$N$12))))),"") -> 0 | G36: =ROUND(F36*'Info Sheet'!N36/100,0) -> 0 | H36: =ROUND(F36*'Info Sheet'!Q36/100,0) -> 0 | J36: 0 | O36: 7 | P36: 2023 | Q36: 7-2023 | R36: 31 | S36: 31 | V36: 0 | W36: 0 | X36: 0 | Y36: 0 | Z36: =ROUND(C36*'Info Sheet'!P36/100,0) -> 0 | AA36: 0 | AB36: 0 | AC36: 0 | AD36: =ROUND(F36*'Info Sheet'!P36/100,0) -> 0 | AE36: 0 | AF36: 0 | AG36: 0
C37: =IFERROR(IF(T37="",0,IF($N$11<7,$M$16,IF(AND($N$11>6,$N$11<19),$M$15,IF(AND($N$11>18,$N$11<31),$M$14,IF(C36>0,$M$13,$M$12))))),"") -> 0 | D37: =ROUND(C37*'Info Sheet'!N37/100,0) -> 0 | E37: =ROUND(C37*'Info Sheet'!Q37/100,0) -> 0 | F37: =IFERROR(IF(T37="",0,IF($N$11<7,$N$16,IF(AND($N$11>6,$N$11<19),$N$15,IF(AND($N$11>18,$N$11<31),$N$14,IF(F36>0,$N$13,$N$12))))),"") -> 0 | G37: =ROUND(F37*'Info Sheet'!N37/100,0) -> 0 | H37: =ROUND(F37*'Info Sheet'!Q37/100,0) -> 0 | J37: 0 | O37: 8 | P37: 2023 | Q37: 8-2023 | R37: 32 | S37: 31 | V37: 0 | W37: 0 | X37: 0 | Y37: 0 | Z37: =ROUND(C37*'Info Sheet'!P37/100,0) -> 0 | AA37: 0 | AB37: 0 | AC37: 0 | AD37: =ROUND(F37*'Info Sheet'!P37/100,0) -> 0 | AE37: 0 | AF37: 0 | AG37: 0
C38: 0 | D38: =ROUND(C38*'Info Sheet'!N38/100,0) -> 0 | E38: =ROUND(C38*'Info Sheet'!Q38/100,0) -> 0 | F38: 0 | G38: =ROUND(F38*'Info Sheet'!N38/100,0) -> 0 | H38: =ROUND(F38*'Info Sheet'!Q38/100,0) -> 0 | J38: =ROUND((SUM(C38:E38)-SUM(F38:H38))*$J$5,0) -> 0 | O38: 9 | P38: 2023 | Q38: 9-2023 | R38: 33 | S38: 30 | T38: =IFERROR(IF($N$10<R38,"",IF($N$11<=R38,Q38,"")),"") ->  | V38: 0 | W38: 0 | X38: 0 | Y38: 0 | Z38: =ROUND(C38*'Info Sheet'!P38/100,0) -> 0 | AA38: 0 | AB38: 0 | AC38: 0 | AD38: =ROUND(F38*'Info Sheet'!P38/100,0) -> 0 | AE38: 0 | AF38: 0 | AG38: 0
C39: 0 | D39: =ROUND(C39*'Info Sheet'!N39/100,0) -> 0 | E39: =ROUND(C39*'Info Sheet'!Q39/100,0) -> 0 | F39: 0 | G39: =ROUND(F39*'Info Sheet'!N39/100,0) -> 0 | H39: =ROUND(F39*'Info Sheet'!Q39/100,0) -> 0 | J39: 0 | O39: 10 | P39: 2023 | Q39: 10-2023 | R39: 34 | S39: 31 | V39: 0 | W39: 0 | X39: 0 | Y39: 0 | Z39: =ROUND(C39*'Info Sheet'!P39/100,0) -> 0 | AA39: 0 | AB39: 0 | AC39: 0 | AD39: =ROUND(F39*'Info Sheet'!P39/100,0) -> 0 | AE39: 0 | AF39: 0 | AG39: 0
C40: 0 | D40: =ROUND(C40*'Info Sheet'!N40/100,0) -> 0 | E40: =ROUND(C40*'Info Sheet'!Q40/100,0) -> 0 | F40: 0 | G40: =ROUND(F40*'Info Sheet'!N40/100,0) -> 0 | H40: =ROUND(F40*'Info Sheet'!Q40/100,0) -> 0 | J40: 0 | O40: 11 | P40: 2023 | Q40: 11-2023 | R40: 35 | S40: 30 | V40: 0 | W40: 0 | X40: 0 | Y40: 0 | Z40: =ROUND(C40*'Info Sheet'!P40/100,0) -> 0 | AA40: 0 | AB40: 0 | AC40: 0 | AD40: =ROUND(F40*'Info Sheet'!P40/100,0) -> 0 | AE40: 0 | AF40: 0 | AG40: 0
C41: 0 | D41: =ROUND(C41*'Info Sheet'!N41/100,0) -> 0 | E41: =ROUND(C41*'Info Sheet'!Q41/100,0) -> 0 | F41: 0 | G41: =ROUND(F41*'Info Sheet'!N41/100,0) -> 0 | H41: =ROUND(F41*'Info Sheet'!Q41/100,0) -> 0 | J41: 0 | O41: 12 | P41: 2023 | Q41: 12-2023 | R41: 36 | S41: 31 | V41: 0 | W41: 0 | X41: 0 | Y41: 0 | Z41: =ROUND(C41*'Info Sheet'!P41/100,0) -> 0 | AA41: 0 | AB41: 0 | AC41: 0 | AD41: =ROUND(F41*'Info Sheet'!P41/100,0) -> 0 | AE41: 0 | AF41: 0 | AG41: 0
C42: 0 | D42: =ROUND(C42*'Info Sheet'!N42/100,0) -> 0 | E42: =ROUND(C42*'Info Sheet'!Q42/100,0) -> 0 | F42: 0 | G42: =ROUND(F42*'Info Sheet'!N42/100,0) -> 0 | H42: =ROUND(F42*'Info Sheet'!Q42/100,0) -> 0 | J42: 0 | O42: 1 | P42: 2024 | Q42: 1-2024 | R42: 37 | S42: 31 | V42: 0 | W42: 0 | X42: 0 | Y42: 0 | Z42: =ROUND(C42*'Info Sheet'!P42/100,0) -> 0 | AA42: 0 | AB42: 0 | AC42: 0 | AD42: =ROUND(F42*'Info Sheet'!P42/100,0) -> 0 | AE42: 0 | AF42: 0 | AG42: 0
C43: 0 | D43: =ROUND(C43*'Info Sheet'!N43/100,0) -> 0 | E43: =ROUND(C43*'Info Sheet'!Q43/100,0) -> 0 | F43: 0 | G43: =ROUND(F43*'Info Sheet'!N43/100,0) -> 0 | H43: =ROUND(F43*'Info Sheet'!Q43/100,0) -> 0 | J43: 0 | O43: 2 | P43: 2024 | Q43: 2-2024 | R43: 38 | S43: 29 | V43: 0 | W43: 0 | X43: 0 | Y43: 0 | Z43: =ROUND(C43*'Info Sheet'!P43/100,0) -> 0 | AA43: 0 | AB43: 0 | AC43: 0 | AD43: =ROUND(F43*'Info Sheet'!P43/100,0) -> 0 | AE43: 0 | AF43: 0 | AG43: 0
C44: 0 | D44: =ROUND(C44*'Info Sheet'!N44/100,0) -> 0 | E44: =ROUND(C44*'Info Sheet'!Q44/100,0) -> 0 | F44: 0 | G44: =ROUND(F44*'Info Sheet'!N44/100,0) -> 0 | H44: =ROUND(F44*'Info Sheet'!Q44/100,0) -> 0 | J44: 0 | O44: 3 | P44: 2024 | Q44: 3-2024 | R44: 39 | S44: 31 | V44: 0 | W44: 0 | X44: 0 | Y44: 0 | Z44: =ROUND(C44*'Info Sheet'!P44/100,0) -> 0 | AA44: 0 | AB44: 0 | AC44: 0 | AD44: =ROUND(F44*'Info Sheet'!P44/100,0) -> 0 | AE44: 0 | AF44: 0 | AG44: 0
C45: 0 | D45: =ROUND(C45*'Info Sheet'!N45/100,0) -> 0 | E45: =ROUND(C45*'Info Sheet'!Q45/100,0) -> 0 | F45: 0 | G45: =ROUND(F45*'Info Sheet'!N45/100,0) -> 0 | H45: =ROUND(F45*'Info Sheet'!Q45/100,0) -> 0 | J45: 0 | O45: 4 | P45: 2024 | Q45: 4-2024 | R45: 40 | S45: 30 | V45: 0 | W45: 0 | X45: 0 | Y45: 0 | Z45: =ROUND(C45*'Info Sheet'!P45/100,0) -> 0 | AA45: 0 | AB45: 0 | AC45: 0 | AD45: =ROUND(F45*'Info Sheet'!P45/100,0) -> 0 | AE45: 0 | AF45: 0 | AG45: 0
C46: 0 | D46: =ROUND(C46*'Info Sheet'!N46/100,0) -> 0 | E46: =ROUND(C46*'Info Sheet'!Q46/100,0) -> 0 | F46: 0 | G46: =ROUND(F46*'Info Sheet'!N46/100,0) -> 0 | H46: =ROUND(F46*'Info Sheet'!Q46/100,0) -> 0 | J46: 0 | O46: 5 | P46: 2024 | Q46: 5-2024 | R46: 41 | S46: 31 | V46: 0 | W46: 0 | X46: 0 | Y46: 0 | Z46: =ROUND(C46*'Info Sheet'!P46/100,0) -> 0 | AA46: 0 | AB46: 0 | AC46: 0 | AD46: =ROUND(F46*'Info Sheet'!P46/100,0) -> 0 | AE46: 0 | AF46: 0 | AG46: 0
C47: 0 | D47: =ROUND(C47*'Info Sheet'!N47/100,0) -> 0 | E47: =ROUND(C47*'Info Sheet'!Q47/100,0) -> 0 | F47: 0 | G47: =ROUND(F47*'Info Sheet'!N47/100,0) -> 0 | H47: =ROUND(F47*'Info Sheet'!Q47/100,0) -> 0 | J47: 0 | O47: 6 | P47: 2024 | Q47: 6-2024 | R47: 42 | S47: 30 | V47: 0 | W47: 0 | X47: 0 | Y47: 0 | Z47: =ROUND(C47*'Info Sheet'!P47/100,0) -> 0 | AA47: 0 | AB47: 0 | AC47: 0 | AD47: =ROUND(F47*'Info Sheet'!P47/100,0) -> 0 | AE47: 0 | AF47: 0 | AG47: 0
C48: =IFERROR(IF(T48="",0,IF($N$11<7,$M$17,IF(AND($N$11>6,$N$11<19),$M$16,IF(AND($N$11>18,$N$11<31),$M$15,IF(AND($N$11>30,$N$11<43),$M$14,IF($N$11=$R$48,$M$12)))))),"") -> 0 | D48: =ROUND(C48*'Info Sheet'!N48/100,0) -> 0 | E48: =ROUND(C48*'Info Sheet'!Q48/100,0) -> 0 | F48: =IFERROR(IF(T48="",0,IF($N$11<7,$N$17,IF(AND($N$11>6,$N$11<19),$N$16,IF(AND($N$11>18,$N$11<31),$N$15,IF(AND($N$11>30,$N$11<43),$N$14,IF($N$11=$R$48,$N$12)))))),"") -> 0 | G48: =ROUND(F48*'Info Sheet'!N48/100,0) -> 0 | H48: =ROUND(F48*'Info Sheet'!Q48/100,0) -> 0 | J48: 0 | O48: 7 | P48: 2024 | Q48: 7-2024 | R48: 43 | S48: 31 | V48: 0 | W48: 0 | X48: 0 | Y48: 0 | Z48: =ROUND(C48*'Info Sheet'!P48/100,0) -> 0 | AA48: 0 | AB48: 0 | AC48: 0 | AD48: =ROUND(F48*'Info Sheet'!P48/100,0) -> 0 | AE48: 0 | AF48: 0 | AG48: 0
C49: =IFERROR(IF(T49="",0,IF($N$11<7,$M$17,IF(AND($N$11>6,$N$11<19),$M$16,IF(AND($N$11>18,$N$11<31),$M$15,IF(AND($N$11>30,$N$11<43),$M$14,IF(C48>0,$M$13,$M$12)))))),"") -> 0 | D49: =ROUND(C49*'Info Sheet'!N49/100,0) -> 0 | E49: =ROUND(C49*'Info Sheet'!Q49/100,0) -> 0 | F49: =IFERROR(IF(T49="",0,IF($N$11<7,$N$17,IF(AND($N$11>6,$N$11<19),$N$16,IF(AND($N$11>18,$N$11<31),$N$15,IF(AND($N$11>30,$N$11<43),$N$14,IF(F48>0,$N$13,$N$12)))))),"") -> 0 | G49: =ROUND(F49*'Info Sheet'!N49/100,0) -> 0 | H49: =ROUND(F49*'Info Sheet'!Q49/100,0) -> 0 | J49: 0 | O49: 8 | P49: 2024 | Q49: 8-2024 | R49: 44 | S49: 31 | V49: 0 | W49: 0 | X49: 0 | Y49: 0 | Z49: =ROUND(C49*'Info Sheet'!P49/100,0) -> 0 | AA49: 0 | AB49: 0 | AC49: 0 | AD49: =ROUND(F49*'Info Sheet'!P49/100,0) -> 0 | AE49: 0 | AF49: 0 | AG49: 0
C50: 0 | D50: =ROUND(C50*'Info Sheet'!N50/100,0) -> 0 | E50: =ROUND(C50*'Info Sheet'!Q50/100,0) -> 0 | F50: 0 | G50: =ROUND(F50*'Info Sheet'!N50/100,0) -> 0 | H50: =ROUND(F50*'Info Sheet'!Q50/100,0) -> 0 | J50: 0 | O50: 9 | P50: 2024 | Q50: 9-2024 | R50: 45 | S50: 30 | V50: 0 | W50: 0 | X50: 0 | Y50: 0 | Z50: =ROUND(C50*'Info Sheet'!P50/100,0) -> 0 | AA50: 0 | AB50: 0 | AC50: 0 | AD50: =ROUND(F50*'Info Sheet'!P50/100,0) -> 0 | AE50: 0 | AF50: 0 | AG50: 0
C51: 0 | D51: =ROUND(C51*'Info Sheet'!N51/100,0) -> 0 | E51: =ROUND(C51*'Info Sheet'!Q51/100,0) -> 0 | F51: 0 | G51: =ROUND(F51*'Info Sheet'!N51/100,0) -> 0 | H51: =ROUND(F51*'Info Sheet'!Q51/100,0) -> 0 | J51: 0 | O51: 10 | P51: 2024 | Q51: 10-2024 | R51: 46 | S51: 31 | V51: 0 | W51: 0 | X51: 0 | Y51: 0 | Z51: =ROUND(C51*'Info Sheet'!P51/100,0) -> 0 | AA51: 0 | AB51: 0 | AC51: 0 | AD51: =ROUND(F51*'Info Sheet'!P51/100,0) -> 0 | AE51: 0 | AF51: 0 | AG51: 0
C52: 0 | D52: =ROUND(C52*'Info Sheet'!N52/100,0) -> 0 | E52: =ROUND(C52*'Info Sheet'!Q52/100,0) -> 0 | F52: 0 | G52: =ROUND(F52*'Info Sheet'!N52/100,0) -> 0 | H52: =ROUND(F52*'Info Sheet'!Q52/100,0) -> 0 | J52: 0 | O52: 11 | P52: 2024 | Q52: 11-2024 | R52: 47 | S52: 30 | V52: 0 | W52: 0 | X52: 0 | Y52: 0 | Z52: =ROUND(C52*'Info Sheet'!P52/100,0) -> 0 | AA52: 0 | AB52: 0 | AC52: 0 | AD52: =ROUND(F52*'Info Sheet'!P52/100,0) -> 0 | AE52: 0 | AF52: 0 | AG52: 0
C53: 0 | D53: =ROUND(C53*'Info Sheet'!N53/100,0) -> 0 | E53: =ROUND(C53*'Info Sheet'!Q53/100,0) -> 0 | F53: 0 | G53: =ROUND(F53*'Info Sheet'!N53/100,0) -> 0 | H53: =ROUND(F53*'Info Sheet'!Q53/100,0) -> 0 | J53: 0 | O53: 12 | P53: 2024 | Q53: 12-2024 | R53: 48 | S53: 31 | V53: 0 | W53: 0 | X53: 0 | Y53: 0 | Z53: =ROUND(C53*'Info Sheet'!P53/100,0) -> 0 | AA53: 0 | AB53: 0 | AC53: 0 | AD53: =ROUND(F53*'Info Sheet'!P53/100,0) -> 0 | AE53: 0 | AF53: 0 | AG53: 0
C54: 0 | D54: =ROUND(C54*'Info Sheet'!N54/100,0) -> 0 | E54: =ROUND(C54*'Info Sheet'!Q54/100,0) -> 0 | F54: 0 | G54: =ROUND(F54*'Info Sheet'!N54/100,0) -> 0 | H54: =ROUND(F54*'Info Sheet'!Q54/100,0) -> 0 | J54: 0 | O54: 1 | P54: 2025 | Q54: 1-2025 | R54: 49 | S54: 31 | V54: 0 | W54: 0 | X54: 0 | Y54: 0 | Z54: =ROUND(C54*'Info Sheet'!P54/100,0) -> 0 | AA54: 0 | AB54: 0 | AC54: 0 | AD54: =ROUND(F54*'Info Sheet'!P54/100,0) -> 0 | AE54: 0 | AF54: 0 | AG54: 0
C55: 0 | D55: =ROUND(C55*'Info Sheet'!N55/100,0) -> 0 | E55: =ROUND(C55*'Info Sheet'!Q55/100,0) -> 0 | F55: 0 | G55: =ROUND(F55*'Info Sheet'!N55/100,0) -> 0 | H55: =ROUND(F55*'Info Sheet'!Q55/100,0) -> 0 | J55: 0 | O55: 2 | P55: 2025 | Q55: 2-2025 | R55: 50 | S55: 28 | V55: 0 | W55: 0 | X55: 0 | Y55: 0 | Z55: =ROUND(C55*'Info Sheet'!P55/100,0) -> 0 | AA55: 0 | AB55: 0 | AC55: 0 | AD55: =ROUND(F55*'Info Sheet'!P55/100,0) -> 0 | AE55: 0 | AF55: 0 | AG55: 0
C56: 0 | D56: =ROUND(C56*'Info Sheet'!N56/100,0) -> 0 | E56: =ROUND(C56*'Info Sheet'!Q56/100,0) -> 0 | F56: 0 | G56: =ROUND(F56*'Info Sheet'!N56/100,0) -> 0 | H56: =ROUND(F56*'Info Sheet'!Q56/100,0) -> 0 | J56: 0 | O56: 3 | P56: 2025 | Q56: 3-2025 | R56: 51 | S56: 31 | V56: 0 | W56: 0 | X56: 0 | Y56: 0 | Z56: =ROUND(C56*'Info Sheet'!P56/100,0) -> 0 | AA56: 0 | AB56: 0 | AC56: 0 | AD56: =ROUND(F56*'Info Sheet'!P56/100,0) -> 0 | AE56: 0 | AF56: 0 | AG56: 0
C57: 0 | D57: =ROUND(C57*'Info Sheet'!N57/100,0) -> 0 | E57: =ROUND(C57*'Info Sheet'!Q57/100,0) -> 0 | F57: 0 | G57: =ROUND(F57*'Info Sheet'!N57/100,0) -> 0 | H57: =ROUND(F57*'Info Sheet'!Q57/100,0) -> 0 | J57: 0 | O57: 4 | P57: 2025 | Q57: 4-2025 | R57: 52 | S57: 30 | V57: 0 | W57: 0 | X57: 0 | Y57: 0 | Z57: =ROUND(C57*'Info Sheet'!P57/100,0) -> 0 | AA57: 0 | AB57: 0 | AC57: 0 | AD57: =ROUND(F57*'Info Sheet'!P57/100,0) -> 0 | AE57: 0 | AF57: 0 | AG57: 0
C58: 0 | D58: =ROUND(C58*'Info Sheet'!N58/100,0) -> 0 | E58: =ROUND(C58*'Info Sheet'!Q58/100,0) -> 0 | F58: 0 | G58: =ROUND(F58*'Info Sheet'!N58/100,0) -> 0 | H58: =ROUND(F58*'Info Sheet'!Q58/100,0) -> 0 | J58: 0 | O58: 5 | P58: 2025 | Q58: 5-2025 | R58: 53 | S58: 31 | V58: 0 | W58: 0 | X58: 0 | Y58: 0 | Z58: =ROUND(C58*'Info Sheet'!P58/100,0) -> 0 | AA58: 0 | AB58: 0 | AC58: 0 | AD58: =ROUND(F58*'Info Sheet'!P58/100,0) -> 0 | AE58: 0 | AF58: 0 | AG58: 0
C59: 0 | D59: =ROUND(C59*'Info Sheet'!N59/100,0) -> 0 | E59: =ROUND(C59*'Info Sheet'!Q59/100,0) -> 0 | F59: 0 | G59: =ROUND(F59*'Info Sheet'!N59/100,0) -> 0 | H59: =ROUND(F59*'Info Sheet'!Q59/100,0) -> 0 | J59: 0 | O59: 6 | P59: 2025 | Q59: 6-2025 | R59: 54 | S59: 30 | V59: 0 | W59: 0 | X59: 0 | Y59: 0 | Z59: =ROUND(C59*'Info Sheet'!P59/100,0) -> 0 | AA59: 0 | AB59: 0 | AC59: 0 | AD59: =ROUND(F59*'Info Sheet'!P59/100,0) -> 0 | AE59: 0 | AF59: 0 | AG59: 0
C60: =IFERROR(IF(T60="",0,IF($N$11<7,$M$18,IF(AND($N$11>6,$N$11<19),$M$17,IF(AND($N$11>18,$N$11<31),$M$16,IF(AND($N$11>30,$N$11<43),$M$15,IF(AND($N$11>42,$N$11<55),$M$14,IF($N$11=$R$60,$M$12))))))),"") -> 0 | D60: =ROUND(C60*'Info Sheet'!N60/100,0) -> 0 | E60: =ROUND(C60*'Info Sheet'!Q60/100,0) -> 0 | F60: =IFERROR(IF(T60="",0,IF($N$11<7,$N$18,IF(AND($N$11>6,$N$11<19),$N$17,IF(AND($N$11>18,$N$11<31),$N$16,IF(AND($N$11>30,$N$11<43),$N$15,IF(AND($N$11>42,$N$11<55),$N$14,IF($N$11=$R$60,$N$12))))))),"") -> 0 | G60: =ROUND(F60*'Info Sheet'!N60/100,0) -> 0 | H60: =ROUND(F60*'Info Sheet'!Q60/100,0) -> 0 | J60: 0 | O60: 7 | P60: 2025 | Q60: 7-2025 | R60: 55 | S60: 31 | V60: 0 | W60: 0 | X60: 0 | Y60: 0 | Z60: =ROUND(C60*'Info Sheet'!P60/100,0) -> 0 | AA60: 0 | AB60: 0 | AC60: 0 | AD60: =ROUND(F60*'Info Sheet'!P60/100,0) -> 0 | AE60: 0 | AF60: 0 | AG60: 0
C61: =IFERROR(IF(T61="",0,IF($N$11<7,$M$18,IF(AND($N$11>6,$N$11<19),$M$17,IF(AND($N$11>18,$N$11<31),$M$16,IF(AND($N$11>30,$N$11<43),$M$15,IF(AND($N$11>42,$N$11<55),$M$14,IF(C60>0,$M$13,$M$12))))))),"") -> 0 | D61: =ROUND(C61*'Info Sheet'!N61/100,0) -> 0 | E61: =ROUND(C61*'Info Sheet'!Q61/100,0) -> 0 | F61: =IFERROR(IF(T61="",0,IF($N$11<7,$N$18,IF(AND($N$11>6,$N$11<19),$N$17,IF(AND($N$11>18,$N$11<31),$N$16,IF(AND($N$11>30,$N$11<43),$N$15,IF(AND($N$11>42,$N$11<55),$N$14,IF(F60>0,$N$13,$N$12))))))),"") -> 0 | G61: =ROUND(F61*'Info Sheet'!N61/100,0) -> 0 | H61: =ROUND(F61*'Info Sheet'!Q61/100,0) -> 0 | J61: 0 | O61: 8 | P61: 2025 | Q61: 8-2025 | R61: 56 | S61: 31 | V61: 0 | W61: 0 | X61: 0 | Y61: 0 | Z61: =ROUND(C61*'Info Sheet'!P61/100,0) -> 0 | AA61: 0 | AB61: 0 | AC61: 0 | AD61: =ROUND(F61*'Info Sheet'!P61/100,0) -> 0 | AE61: 0 | AF61: 0 | AG61: 0
C62: 0 | D62: =ROUND(C62*'Info Sheet'!N62/100,0) -> 0 | E62: =ROUND(C62*'Info Sheet'!Q62/100,0) -> 0 | F62: 0 | G62: =ROUND(F62*'Info Sheet'!N62/100,0) -> 0 | H62: =ROUND(F62*'Info Sheet'!Q62/100,0) -> 0 | J62: 0 | O62: 9 | P62: 2025 | Q62: 9-2025 | R62: 57 | S62: 30 | V62: 0 | W62: 0 | X62: 0 | Y62: 0 | Z62: =ROUND(C62*'Info Sheet'!P62/100,0) -> 0 | AA62: 0 | AB62: 0 | AC62: 0 | AD62: =ROUND(F62*'Info Sheet'!P62/100,0) -> 0 | AE62: 0 | AF62: 0 | AG62: 0
C63: 0 | D63: =ROUND(C63*'Info Sheet'!N63/100,0) -> 0 | E63: =ROUND(C63*'Info Sheet'!Q63/100,0) -> 0 | F63: 0 | G63: =ROUND(F63*'Info Sheet'!N63/100,0) -> 0 | H63: =ROUND(F63*'Info Sheet'!Q63/100,0) -> 0 | J63: 0 | O63: 10 | P63: 2025 | Q63: 10-2025 | R63: 58 | S63: 31 | V63: 0 | W63: 0 | X63: 0 | Y63: 0 | Z63: =ROUND(C63*'Info Sheet'!P63/100,0) -> 0 | AA63: 0 | AB63: 0 | AC63: 0 | AD63: =ROUND(F63*'Info Sheet'!P63/100,0) -> 0 | AE63: 0 | AF63: 0 | AG63: 0
C64: 0 | D64: =ROUND(C64*'Info Sheet'!N64/100,0) -> 0 | E64: =ROUND(C64*'Info Sheet'!Q64/100,0) -> 0 | F64: 0 | G64: =ROUND(F64*'Info Sheet'!N64/100,0) -> 0 | H64: =ROUND(F64*'Info Sheet'!Q64/100,0) -> 0 | J64: 0 | O64: 11 | P64: 2025 | Q64: 11-2025 | R64: 59 | S64: 30 | V64: 0 | W64: 0 | X64: 0 | Y64: 0 | Z64: =ROUND(C64*'Info Sheet'!P64/100,0) -> 0 | AA64: 0 | AB64: 0 | AC64: 0 | AD64: =ROUND(F64*'Info Sheet'!P64/100,0) -> 0 | AE64: 0 | AF64: 0 | AG64: 0
C65: 0 | D65: =ROUND(C65*'Info Sheet'!N65/100,0) -> 0 | E65: =ROUND(C65*'Info Sheet'!Q65/100,0) -> 0 | F65: 0 | G65: =ROUND(F65*'Info Sheet'!N65/100,0) -> 0 | H65: =ROUND(F65*'Info Sheet'!Q65/100,0) -> 0 | J65: 0 | O65: 12 | P65: 2025 | Q65: 12-2025 | R65: 60 | S65: 31 | V65: 0 | W65: 0 | X65: 0 | Y65: 0 | Z65: =ROUND(C65*'Info Sheet'!P65/100,0) -> 0 | AA65: 0 | AB65: 0 | AC65: 0 | AD65: =ROUND(F65*'Info Sheet'!P65/100,0) -> 0 | AE65: 0 | AF65: 0 | AG65: 0
C66: 0 | D66: =ROUND(C66*'Info Sheet'!N66/100,0) -> 0 | E66: =ROUND(C66*'Info Sheet'!Q66/100,0) -> 0 | F66: 0 | G66: =ROUND(F66*'Info Sheet'!N66/100,0) -> 0 | H66: =ROUND(F66*'Info Sheet'!Q66/100,0) -> 0 | J66: 0 | O66: 1 | P66: 2026 | Q66: 1-2026 | R66: 61 | S66: 31 | V66: 0 | W66: 0 | X66: 0 | Y66: 0 | Z66: =ROUND(C66*'Info Sheet'!P66/100,0) -> 0 | AA66: 0 | AB66: 0 | AC66: 0 | AD66: =ROUND(F66*'Info Sheet'!P66/100,0) -> 0 | AE66: 0 | AF66: 0 | AG66: 0
C67: 0 | D67: =ROUND(C67*'Info Sheet'!N67/100,0) -> 0 | E67: =ROUND(C67*'Info Sheet'!Q67/100,0) -> 0 | F67: 0 | G67: =ROUND(F67*'Info Sheet'!N67/100,0) -> 0 | H67: =ROUND(F67*'Info Sheet'!Q67/100,0) -> 0 | J67: 0 | O67: 2 | P67: 2026 | Q67: 2-2026 | R67: 62 | S67: 28 | V67: 0 | W67: 0 | X67: 0 | Y67: 0 | Z67: =ROUND(C67*'Info Sheet'!P67/100,0) -> 0 | AA67: 0 | AB67: 0 | AC67: 0 | AD67: =ROUND(F67*'Info Sheet'!P67/100,0) -> 0 | AE67: 0 | AF67: 0 | AG67: 0
C68: 0 | D68: =ROUND(C68*'Info Sheet'!N68/100,0) -> 0 | E68: =ROUND(C68*'Info Sheet'!Q68/100,0) -> 0 | F68: 0 | G68: =ROUND(F68*'Info Sheet'!N68/100,0) -> 0 | H68: =ROUND(F68*'Info Sheet'!Q68/100,0) -> 0 | J68: 0 | O68: 3 | P68: 2026 | Q68: 3-2026 | R68: 63 | S68: 31 | V68: 0 | W68: 0 | X68: 0 | Y68: 0 | Z68: =ROUND(C68*'Info Sheet'!P68/100,0) -> 0 | AA68: 0 | AB68: 0 | AC68: 0 | AD68: =ROUND(F68*'Info Sheet'!P68/100,0) -> 0 | AE68: 0 | AF68: 0 | AG68: 0
A69: =IFERROR(IF(T72="",0,IF($N$11<7,$N$18,IF(AND($N$11>6,$N$11<19),$N$17,IF(AND($N$11>18,$N$11<31),$N$16,IF(AND($N$11>30,$N$11<43),$N$15,IF(AND($N$11>42,$N$11<55),$N$14,IF(F71>0,$N$13,$N$12))))))),"") -> 0 | C69: 0 | D69: =ROUND(C69*'Info Sheet'!N69/100,0) -> 0 | E69: =ROUND(C69*'Info Sheet'!Q69/100,0) -> 0 | F69: 0 | G69: =ROUND(F69*'Info Sheet'!N69/100,0) -> 0 | H69: =ROUND(F69*'Info Sheet'!Q69/100,0) -> 0 | J69: 0 | O69: 4 | P69: 2026 | Q69: 4-2026 | R69: 64 | S69: 30 | V69: 0 | W69: 0 | X69: 0 | Y69: 0 | Z69: =ROUND(C69*'Info Sheet'!P69/100,0) -> 0 | AA69: 0 | AB69: 0 | AC69: 0 | AD69: =ROUND(F69*'Info Sheet'!P69/100,0) -> 0 | AE69: 0 | AF69: 0 | AG69: 0
A70: =IF(AND(N9>55,N9<77),N13,A69) -> 0 | C70: 0 | D70: =ROUND(C70*'Info Sheet'!N70/100,0) -> 0 | E70: =ROUND(C70*'Info Sheet'!Q70/100,0) -> 0 | F70: 0 | G70: =ROUND(F70*'Info Sheet'!N70/100,0) -> 0 | H70: =ROUND(F70*'Info Sheet'!Q70/100,0) -> 0 | J70: =ROUND((SUM(C70:E70)-SUM(F70:H70))*$J$5,0) -> 0 | O70: 5 | P70: 2026 | Q70: 5-2026 | R70: 65 | S70: 31 | T70: =IFERROR(IF($N$10<R70,"",IF($N$11<=R70,Q70,"")),"") ->  | V70: 0 | W70: 0 | X70: 0 | Y70: 0 | Z70: =ROUND(C70*'Info Sheet'!P70/100,0) -> 0 | AA70: 0 | AB70: 0 | AC70: 0 | AD70: =ROUND(F70*'Info Sheet'!P70/100,0) -> 0 | AE70: 0 | AF70: 0 | AG70: 0
A71: =IFERROR(IF(T72="",0,IF($N$11<7,$M$18,IF(AND($N$11>6,$N$11<19),$M$17,IF(AND($N$11>18,$N$11<31),$M$16,IF(AND($N$11>30,$N$11<43),$M$15,IF(AND($N$11>42,$N$11<55),$M$14,IF(C71>0,$M$13,$M$12))))))),"") -> 0 | B71: =T71 ->  | C71: 0 | D71: =ROUND(C71*'Info Sheet'!N71/100,0) -> 0 | E71: =ROUND(C71*'Info Sheet'!Q71/100,0) -> 0 | F71: 0 | G71: =ROUND(F71*'Info Sheet'!N71/100,0) -> 0 | H71: =ROUND(F71*'Info Sheet'!Q71/100,0) -> 0 | J71: 0 | O71: 6 | P71: 2026 | Q71: =O71&"-"&P71 -> 6-2026 | R71: 66 | S71: 30 | V71: =IF(C71>=$M$13,C71,0) -> 0 | W71: =IF(F71>=$N$13,F71,0) -> 0 | X71: =IF(V71>51500,3575,IF(V71>38500,2850,IF(V71>28500,2100,IF(V71>23000,1625,IF(V71>0,1450,0))))) -> 0 | Y71: =IF(V71>167000,10500,IF(V71>116000,8900,IF(V71>80000,6150,IF(V71>72000,4800,IF(V71>62000,4200,X71))))) -> 0 | Z71: =ROUND(C71*'Info Sheet'!P71/100,0) -> 0 | AA71: =Y71+Z71 -> 0 | AB71: =IF(W71>51500,3575,IF(W71>38500,2850,IF(W71>28500,2100,IF(W71>23000,1625,IF(W71>0,1450,0))))) -> 0 | AC71: =IF(W71>167000,10500,IF(W71>116000,8900,IF(W71>80000,6150,IF(W71>72000,4800,IF(W71>62000,4200,AB71))))) -> 0 | AD71: =ROUND(F71*'Info Sheet'!P71/100,0) -> 0 | AE71: =AC71+AD71 -> 0 | AF71: =IF(V71>54000,875,IF(V71>33500,658,IF(V71>18000,440,IF(V71>0,265,0)))) -> 0 | AG71: =IF(W71>54000,875,IF(W71>33500,658,IF(W71>18000,440,IF(W71>0,265,0)))) -> 0
A72: =IF(AND(N9>55,N9<77),M13,A71) -> 0 | C72: =A72 -> 0 | D72: =ROUND(C72*'Info Sheet'!N72/100,0) -> 0 | E72: =ROUND(C72*'Info Sheet'!Q72/100,0) -> 0 | F72: =A70 -> 0 | G72: =ROUND(F72*'Info Sheet'!N72/100,0) -> 0 | H72: =ROUND(F72*'Info Sheet'!Q72/100,0) -> 0 | J72: 0 | O72: 7 | P72: 2026 | Q72: 7-2026 | R72: 67 | S72: 31 | V72: 0 | W72: 0 | X72: 0 | Y72: 0 | Z72: =ROUND(C72*'Info Sheet'!P72/100,0) -> 0 | AA72: 0 | AB72: 0 | AC72: 0 | AD72: =ROUND(F72*'Info Sheet'!P72/100,0) -> 0 | AE72: 0 | AF72: 0 | AG72: 0
C73: =IFERROR(IF(T73="",0,IF($N$11<7,$M$18,IF(AND($N$11>6,$N$11<19),$M$17,IF(AND($N$11>18,$N$11<31),$M$16,IF(AND($N$11>30,$N$11<43),$M$15,IF(AND($N$11>42,$N$11<55),$M$14,IF(C72>0,$M$13,$M$12))))))),"") -> 0 | D73: =ROUND(C73*'Info Sheet'!N73/100,0) -> 0 | E73: =ROUND(C73*'Info Sheet'!Q73/100,0) -> 0 | F73: =IFERROR(IF(T73="",0,IF($N$11<7,$N$18,IF(AND($N$11>6,$N$11<19),$N$17,IF(AND($N$11>18,$N$11<31),$N$16,IF(AND($N$11>30,$N$11<43),$N$15,IF(AND($N$11>42,$N$11<55),$N$14,IF(F72>0,$N$13,$N$12))))))),"") -> 0 | G73: =ROUND(F73*'Info Sheet'!N73/100,0) -> 0 | H73: =ROUND(F73*'Info Sheet'!Q73/100,0) -> 0 | J73: 0 | O73: 8 | P73: 2026 | Q73: 8-2026 | R73: 68 | S73: 31 | V73: 0 | W73: 0 | X73: 0 | Y73: 0 | Z73: =ROUND(C73*'Info Sheet'!P73/100,0) -> 0 | AA73: 0 | AB73: 0 | AC73: 0 | AD73: =ROUND(F73*'Info Sheet'!P73/100,0) -> 0 | AE73: 0 | AF73: 0 | AG73: 0
C74: =IFERROR(IF(T74="",0,IF($N$11<7,$M$18,IF(AND($N$11>6,$N$11<19),$M$17,IF(AND($N$11>18,$N$11<31),$M$16,IF(AND($N$11>30,$N$11<43),$M$15,IF(AND($N$11>42,$N$11<55),$M$14,IF(C73>0,$M$13,$M$12))))))),"") -> 0 | D74: =ROUND(C74*'Info Sheet'!N74/100,0) -> 0 | E74: =ROUND(C74*'Info Sheet'!Q74/100,0) -> 0 | F74: =IFERROR(IF(T74="",0,IF($N$11<7,$N$18,IF(AND($N$11>6,$N$11<19),$N$17,IF(AND($N$11>18,$N$11<31),$N$16,IF(AND($N$11>30,$N$11<43),$N$15,IF(AND($N$11>42,$N$11<55),$N$14,IF(F73>0,$N$13,$N$12))))))),"") -> 0 | G74: =ROUND(F74*'Info Sheet'!N74/100,0) -> 0 | H74: =ROUND(F74*'Info Sheet'!Q74/100,0) -> 0 | J74: 0 | O74: 9 | P74: 2026 | Q74: 9-2026 | R74: 69 | S74: 30 | V74: 0 | W74: 0 | X74: 0 | Y74: 0 | Z74: =ROUND(C74*'Info Sheet'!P74/100,0) -> 0 | AA74: 0 | AB74: 0 | AC74: 0 | AD74: =ROUND(F74*'Info Sheet'!P74/100,0) -> 0 | AE74: 0 | AF74: 0 | AG74: 0
C75: =IFERROR(IF(T75="",0,IF($N$11<7,$M$18,IF(AND($N$11>6,$N$11<19),$M$17,IF(AND($N$11>18,$N$11<31),$M$16,IF(AND($N$11>30,$N$11<43),$M$15,IF(AND($N$11>42,$N$11<55),$M$14,IF(C74>0,$M$13,$M$12))))))),"") -> 0 | D75: =ROUND(C75*'Info Sheet'!N75/100,0) -> 0 | E75: =ROUND(C75*'Info Sheet'!Q75/100,0) -> 0 | F75: =IFERROR(IF(T75="",0,IF($N$11<7,$N$18,IF(AND($N$11>6,$N$11<19),$N$17,IF(AND($N$11>18,$N$11<31),$N$16,IF(AND($N$11>30,$N$11<43),$N$15,IF(AND($N$11>42,$N$11<55),$N$14,IF(F74>0,$N$13,$N$12))))))),"") -> 0 | G75: =ROUND(F75*'Info Sheet'!N75/100,0) -> 0 | H75: =ROUND(F75*'Info Sheet'!Q75/100,0) -> 0 | J75: 0 | O75: 10 | P75: 2026 | Q75: 10-2026 | R75: 70 | S75: 31 | V75: 0 | W75: 0 | X75: 0 | Y75: 0 | Z75: =ROUND(C75*'Info Sheet'!P75/100,0) -> 0 | AA75: 0 | AB75: 0 | AC75: 0 | AD75: =ROUND(F75*'Info Sheet'!P75/100,0) -> 0 | AE75: 0 | AF75: 0 | AG75: 0
C76: =IFERROR(IF(T76="",0,IF($N$11<7,$M$18,IF(AND($N$11>6,$N$11<19),$M$17,IF(AND($N$11>18,$N$11<31),$M$16,IF(AND($N$11>30,$N$11<43),$M$15,IF(AND($N$11>42,$N$11<55),$M$14,IF(C75>0,$M$13,$M$12))))))),"") -> 0 | D76: =ROUND(C76*'Info Sheet'!N76/100,0) -> 0 | E76: =ROUND(C76*'Info Sheet'!Q76/100,0) -> 0 | F76: =IFERROR(IF(T76="",0,IF($N$11<7,$N$18,IF(AND($N$11>6,$N$11<19),$N$17,IF(AND($N$11>18,$N$11<31),$N$16,IF(AND($N$11>30,$N$11<43),$N$15,IF(AND($N$11>42,$N$11<55),$N$14,IF(F75>0,$N$13,$N$12))))))),"") -> 0 | G76: =ROUND(F76*'Info Sheet'!N76/100,0) -> 0 | H76: =ROUND(F76*'Info Sheet'!Q76/100,0) -> 0 | J76: 0 | O76: 11 | P76: 2026 | Q76: 11-2026 | R76: 71 | S76: 30 | V76: 0 | W76: 0 | X76: 0 | Y76: 0 | Z76: =ROUND(C76*'Info Sheet'!P76/100,0) -> 0 | AA76: 0 | AB76: 0 | AC76: 0 | AD76: =ROUND(F76*'Info Sheet'!P76/100,0) -> 0 | AE76: 0 | AF76: 0 | AG76: 0
C77: =IFERROR(IF(T77="",0,IF($N$11<7,$M$18,IF(AND($N$11>6,$N$11<19),$M$17,IF(AND($N$11>18,$N$11<31),$M$16,IF(AND($N$11>30,$N$11<43),$M$15,IF(AND($N$11>42,$N$11<55),$M$14,IF(C76>0,$M$13,$M$12))))))),"") -> 0 | D77: =ROUND(C77*'Info Sheet'!N77/100,0) -> 0 | E77: =ROUND(C77*'Info Sheet'!Q77/100,0) -> 0 | F77: =IFERROR(IF(T77="",0,IF($N$11<7,$N$18,IF(AND($N$11>6,$N$11<19),$N$17,IF(AND($N$11>18,$N$11<31),$N$16,IF(AND($N$11>30,$N$11<43),$N$15,IF(AND($N$11>42,$N$11<55),$N$14,IF(F76>0,$N$13,$N$12))))))),"") -> 0 | G77: =ROUND(F77*'Info Sheet'!N77/100,0) -> 0 | H77: =ROUND(F77*'Info Sheet'!Q77/100,0) -> 0 | J77: 0 | O77: 12 | P77: 2026 | Q77: 12-2026 | R77: 72 | S77: 31 | V77: 0 | W77: 0 | X77: 0 | Y77: 0 | Z77: =ROUND(C77*'Info Sheet'!P77/100,0) -> 0 | AA77: 0 | AB77: 0 | AC77: 0 | AD77: =ROUND(F77*'Info Sheet'!P77/100,0) -> 0 | AE77: 0 | AF77: 0 | AG77: 0

Sheet Arrear Sheet
B1: Office of the Principal, Govt Sr Sec School Malutana (Thanagazi) Alwar
B2: Salary Arrear from 01-Jan-2021 to Nov-2021
B3: 1 | C3: Name : Pramod Kumar Saini | R3: Desination : Teacher
B4: Month / Year | C4: PAY DUE | G4: PAY DRAWN | K4: PAY DIFFERENCE | O4: =IFERROR(VLOOKUP(B3,'Info Sheet'!$B$6:$K$20,9,0),"") -> GPF 2004 | R4: SIP | U4: RGHS | X4: I TAX | AA4: Total Dedu | AB4: Net Pay | AC4: TV No
C5: Basic | D5: DA | E5: HRA | F5: Total | G5: Basic | H5: DA | I5: HRA | J5: Total | K5: Basic | L5: DA | M5: HRA | N5: =IF(F5="","",F5) -> Total | O5: Due | P5: Dedu | Q5: Diff | R5: Due | S5: Dedu | T5: Diff | U5: Due | V5: Dedu | W5: Diff | X5: Due | Y5: Dedu | Z5: Diff
B6: 2021-01-01 | C6: 47900 | D6: 8143 | E6: 3832 | F6: =SUM(C6:E6) -> 59875 | G6: 45100 | H6: 7667 | I6: 3608 | J6: =SUM(G6:I6) -> 56375 | K6: =C6-G6 -> 2800 | L6: =D6-H6 -> 476 | M6: =E6-I6 -> 224 | N6: =SUM(K6:M6) -> 3500 | O6: 2850 | P6: 2850 | Q6: =O6-P6 -> 0 | R6: 0 | S6: 0 | T6: =R6-S6 -> 0 | U6: 658 | V6: 658 | W6: =U6-V6 -> 0 | X6: 350 | Y6: 0 | Z6: =X6-Y6 -> 350 | AA6: =Q6+T6+W6+Z6 -> 350 | AB6: =N6-AA6 -> 3150
B7: 2021-02-01 | C7: 47900 | D7: 8143 | E7: 3832 | F7: =SUM(C7:E7) -> 59875 | G7: 45100 | H7: 7667 | I7: 3608 | J7: =SUM(G7:I7) -> 56375 | K7: =C7-G7 -> 2800 | L7: =D7-H7 -> 476 | M7: =E7-I7 -> 224 | N7: =SUM(K7:M7) -> 3500 | O7: 2850 | P7: 2850 | Q7: =O7-P7 -> 0 | R7: 0 | S7: 0 | T7: =R7-S7 -> 0 | U7: 658 | V7: 658 | W7: =U7-V7 -> 0 | X7: 350 | Y7: 0 | Z7: =X7-Y7 -> 350 | AA7: =Q7+T7+W7+Z7 -> 350 | AB7: =N7-AA7 -> 3150
B8: 2021-03-01 | C8: 47900 | D8: 8143 | E8: 3832 | F8: =SUM(C8:E8) -> 59875 | G8: 45100 | H8: 7667 | I8: 3608 | J8: 56375 | K8: 2800 | L8: 476 | M8: 224 | N8: 3500 | O8: 2850 | P8: 2850 | Q8: 0 | R8: 0 | S8: 0 | T8: 0 | U8: 658 | V8: 658 | W8: 0 | X8: 350 | Y8: 0 | Z8: 350 | AA8: 350 | AB8: 3150
B9: 2021-04-01 | C9: 47900 | D9: 8143 | E9: 3832 | F9: 59875 | G9: 45100 | H9: 7667 | I9: 3608 | J9: 56375 | K9: 2800 | L9: 476 | M9: 224 | N9: 3500 | O9: 2850 | P9: 2850 | Q9: 0 | R9: 0 | S9: 0 | T9: 0 | U9: 658 | V9: 658 | W9: 0 | X9: 350 | Y9: 0 | Z9: 350 | AA9: 350 | AB9: 3150
B10: 2021-05-01 | C10: 47900 | D10: 8143 | E10: 3832 | F10: 59875 | G10: 45100 | H10: 7667 | I10: 3608 | J10: 56375 | K10: 2800 | L10: 476 | M10: 224 | N10: 3500 | O10: 2850 | P10: 2850 | Q10: 0 | R10: 0 | S10: 0 | T10: 0 | U10: 658 | V10: 658 | W10: 0 | X10: 350 | Y10: 0 | Z10: 350 | AA10: 350 | AB10: 3150
B11: 2021-06-01 | C11: 47900 | D11: 8143 | E11: 3832 | F11: 59875 | G11: 45100 | H11: 7667 | I11: 3608 | J11: 56375 | K11: 2800 | L11: 476 | M11: 224 | N11: 3500 | O11: 2850 | P11: 2850 | Q11: 0 | R11: 0 | S11: 0 | T11: 0 | U11: 658 | V11: 658 | W11: 0 | X11: 350 | Y11: 0 | Z11: 350 | AA11: 350 | AB11: 3150
B12: 2021-07-01 | C12: 49300 | D12: 15283 | E12: 4437 | F12: 69020 | G12: 46500 | H12: 14415 | I12: 4185 | J12: 65100 | K12: 2800 | L12: 868 | M12: 252 | N12: 3920 | O12: 9752 | P12: 9360 | Q12: 392 | R12: 0 | S12: 0 | T12: 0 | U12: 658 | V12: 658 | W12: 0 | X12: 392 | Y12: 0 | Z12: 392 | AA12: 784 | AB12: 3136
B13: 2021-08-01 | C13: 49300 | D13: 15283 | E13: 4437 | F13: 69020 | G13: 46500 | H13: 14415 | I13: 4185 | J13: 65100 | K13: 2800 | L13: 868 | M13: 252 | N13: 3920 | O13: 9752 | P13: 9360 | Q13: 392 | R13: 0 | S13: 0 | T13: 0 | U13: 658 | V13: 658 | W13: 0 | X13: 392 | Y13: 0 | Z13: 392 | AA13: 784 | AB13: 3136
B14: 2021-09-01 | C14: 49300 | D14: 15283 | E14: 4437 | F14: 69020 | G14: 46500 | H14: 14415 | I14: 4185 | J14: 65100 | K14: 2800 | L14: 868 | M14: 252 | N14: 3920 | O14: 9752 | P14: 9360 | Q14: 392 | R14: 0 | S14: 0 | T14: 0 | U14: 658 | V14: 658 | W14: 0 | X14: 392 | Y14: 0 | Z14: 392 | AA14: 784 | AB14: 3136
B15: 2021-10-01 | C15: 49300 | D15: 15283 | E15: 4437 | F15: 69020 | G15: 46500 | H15: 14415 | I15: 4185 | J15: 65100 | K15: 2800 | L15: 868 | M15: 252 | N15: 3920 | O15: 2850 | P15: 2850 | Q15: 0 | R15: 0 | S15: 0 | T15: 0 | U15: 658 | V15: 658 | W15: 0 | X15: 392 | Y15: 0 | Z15: 392 | AA15: 392 | AB15: 3528
B16: 2021-11-01 | C16: 49300 | D16: 15283 | E16: 4437 | F16: 69020 | G16: 46500 | H16: 14415 | I16: 4185 | J16: 65100 | K16: 2800 | L16: 868 | M16: 252 | N16: 3920 | O16: 2850 | P16: 2850 | Q16: 0 | R16: 0 | S16: 0 | T16: 0 | U16: 658 | V16: 658 | W16: 0 | X16: 392 | Y16: 0 | Z16: 392 | AA16: 392 | AB16: 3528
B17: 2021-12-01 | C17: 0 | D17: 0 | E17: 0 | F17: 0 | G17: 0 | H17: 0 | I17: 0 | J17: 0 | K17: 0 | L17: 0 | M17: 0 | N17: 0 | O17: 0 | P17: 0 | Q17: 0 | R17: 0 | S17: 0 | T17: 0 | U17: 0 | V17: 0 | W17: 0 | X17: 0 | Y17: 0 | Z17: 0 | AA17: 0 | AB17: 0
B18: 2022-01-01 | C18: 0 | D18: 0 | E18: 0 | F18: 0 | G18: 0 | H18: 0 | I18: 0 | J18: 0 | K18: 0 | L18: 0 | M18: 0 | N18: 0 | O18: 0 | P18: 0 | Q18: 0 | R18: 0 | S18: 0 | T18: 0 | U18: 0 | V18: 0 | W18: 0 | X18: 0 | Y18: 0 | Z18: 0 | AA18: 0 | AB18: 0
B19: 2022-02-01 | C19: 0 | D19: 0 | E19: 0 | F19: 0 | G19: 0 | H19: 0 | I19: 0 | J19: 0 | K19: 0 | L19: 0 | M19: 0 | N19: 0 | O19: 0 | P19: 0 | Q19: 0 | R19: 0 | S19: 0 | T19: 0 | U19: 0 | V19: 0 | W19: 0 | X19: 0 | Y19: 0 | Z19: 0 | AA19: 0 | AB19: 0
B20: 2022-03-01 | C20: 0 | D20: 0 | E20: 0 | F20: 0 | G20: 0 | H20: 0 | I20: 0 | J20: 0 | K20: 0 | L20: 0 | M20: 0 | N20: 0 | O20: 0 | P20: 0 | Q20: 0 | R20: 0 | S20: 0 | T20: 0 | U20: 0 | V20: 0 | W20: 0 | X20: 0 | Y20: 0 | Z20: 0 | AA20: 0 | AB20: 0
B21: 2022-04-01 | C21: 0 | D21: 0 | E21: 0 | F21: 0 | G21: 0 | H21: 0 | I21: 0 | J21: 0 | K21: 0 | L21: 0 | M21: 0 | N21: 0 | O21: 0 | P21: 0 | Q21: 0 | R21: 0 | S21: 0 | T21: 0 | U21: 0 | V21: 0 | W21: 0 | X21: 0 | Y21: 0 | Z21: 0 | AA21: 0 | AB21: 0
B22: 2022-05-01 | C22: 0 | D22: 0 | E22: 0 | F22: 0 | G22: 0 | H22: 0 | I22: 0 | J22: 0 | K22: 0 | L22: 0 | M22: 0 | N22: 0 | O22: 0 | P22: 0 | Q22: 0 | R22: 0 | S22: 0 | T22: 0 | U22: 0 | V22: 0 | W22: 0 | X22: 0 | Y22: 0 | Z22: 0 | AA22: 0 | AB22: 0
B23: 2022-06-01 | C23: 0 | D23: 0 | E23: 0 | F23: 0 | G23: 0 | H23: 0 | I23: 0 | J23: 0 | K23: 0 | L23: 0 | M23: 0 | N23: 0 | O23: 0 | P23: 0 | Q23: 0 | R23: 0 | S23: 0 | T23: 0 | U23: 0 | V23: 0 | W23: 0 | X23: 0 | Y23: 0 | Z23: 0 | AA23: 0 | AB23: 0
B24: 2022-07-01 | C24: 0 | D24: 0 | E24: 0 | F24: 0 | G24: 0 | H24: 0 | I24: 0 | J24: 0 | K24: 0 | L24: 0 | M24: 0 | N24: 0 | O24: 0 | P24: 0 | Q24: 0 | R24: 0 | S24: 0 | T24: 0 | U24: 0 | V24: 0 | W24: 0 | X24: 0 | Y24: 0 | Z24: 0 | AA24: 0 | AB24: 0
B25: 2022-08-01 | C25: 0 | D25: 0 | E25: 0 | F25: 0 | G25: 0 | H25: 0 | I25: 0 | J25: 0 | K25: 0 | L25: 0 | M25: 0 | N25: 0 | O25: 0 | P25: 0 | Q25: 0 | R25: 0 | S25: 0 | T25: 0 | U25: 0 | V25: 0 | W25: 0 | X25: 0 | Y25: 0 | Z25: 0 | AA25: 0 | AB25: 0
B26: 2022-09-01 | C26: 0 | D26: 0 | E26: 0 | F26: 0 | G26: 0 | H26: 0 | I26: 0 | J26: 0 | K26: 0 | L26: 0 | M26: 0 | N26: 0 | O26: 0 | P26: 0 | Q26: 0 | R26: 0 | S26: 0 | T26: 0 | U26: 0 | V26: 0 | W26: 0 | X26: 0 | Y26: 0 | Z26: 0 | AA26: 0 | AB26: 0
B27: 2022-10-01 | C27: 0 | D27: 0 | E27: 0 | F27: 0 | G27: 0 | H27: 0 | I27: 0 | J27: 0 | K27: 0 | L27: 0 | M27: 0 | N27: 0 | O27: 0 | P27: 0 | Q27: 0 | R27: 0 | S27: 0 | T27: 0 | U27: 0 | V27: 0 | W27: 0 | X27: 0 | Y27: 0 | Z27: 0 | AA27: 0 | AB27: 0
B28: 2022-11-01 | C28: 0 | D28: 0 | E28: 0 | F28: 0 | G28: 0 | H28: 0 | I28: 0 | J28: 0 | K28: 0 | L28: 0 | M28: 0 | N28: 0 | O28: 0 | P28: 0 | Q28: 0 | R28: 0 | S28: 0 | T28: 0 | U28: 0 | V28: 0 | W28: 0 | X28: 0 | Y28: 0 | Z28: 0 | AA28: 0 | AB28: 0
B29: 2022-12-01 | C29: 0 | D29: 0 | E29: 0 | F29: 0 | G29: 0 | H29: 0 | I29: 0 | J29: 0 | K29: 0 | L29: 0 | M29: 0 | N29: 0 | O29: 0 | P29: 0 | Q29: 0 | R29: 0 | S29: 0 | T29: 0 | U29: 0 | V29: 0 | W29: 0 | X29: 0 | Y29: 0 | Z29: 0 | AA29: 0 | AB29: 0
B30: 2023-01-01 | C30: 0 | D30: 0 | E30: 0 | F30: 0 | G30: 0 | H30: 0 | I30: 0 | J30: 0 | K30: 0 | L30: 0 | M30: 0 | N30: 0 | O30: 0 | P30: 0 | Q30: 0 | R30: 0 | S30: 0 | T30: 0 | U30: 0 | V30: 0 | W30: 0 | X30: 0 | Y30: 0 | Z30: 0 | AA30: 0 | AB30: 0
B31: 2023-02-01 | C31: 0 | D31: 0 | E31: 0 | F31: 0 | G31: 0 | H31: 0 | I31: 0 | J31: 0 | K31: 0 | L31: 0 | M31: 0 | N31: 0 | O31: 0 | P31: 0 | Q31: 0 | R31: 0 | S31: 0 | T31: 0 | U31: 0 | V31: 0 | W31: 0 | X31: 0 | Y31: 0 | Z31: 0 | AA31: 0 | AB31: 0
B32: 2023-03-01 | C32: 0 | D32: 0 | E32: 0 | F32: 0 | G32: 0 | H32: 0 | I32: 0 | J32: 0 | K32: 0 | L32: 0 | M32: 0 | N32: 0 | O32: 0 | P32: 0 | Q32: 0 | R32: 0 | S32: 0 | T32: 0 | U32: 0 | V32: 0 | W32: 0 | X32: 0 | Y32: 0 | Z32: 0 | AA32: 0 | AB32: 0
B33: 2023-04-01 | C33: 0 | D33: 0 | E33: 0 | F33: 0 | G33: 0 | H33: 0 | I33: 0 | J33: 0 | K33: 0 | L33: 0 | M33: 0 | N33: 0 | O33: 0 | P33: 0 | Q33: 0 | R33: 0 | S33: 0 | T33: 0 | U33: 0 | V33: 0 | W33: 0 | X33: 0 | Y33: 0 | Z33: 0 | AA33: 0 | AB33: 0
B34: 2023-05-01 | C34: 0 | D34: 0 | E34: 0 | F34: 0 | G34: 0 | H34: 0 | I34: 0 | J34: 0 | K34: 0 | L34: 0 | M34: 0 | N34: 0 | O34: 0 | P34: 0 | Q34: 0 | R34: 0 | S34: 0 | T34: 0 | U34: 0 | V34: 0 | W34: 0 | X34: 0 | Y34: 0 | Z34: 0 | AA34: 0 | AB34: 0
B35: 2023-06-01 | C35: 0 | D35: 0 | E35: 0 | F35: 0 | G35: 0 | H35: 0 | I35: 0 | J35: 0 | K35: 0 | L35: 0 | M35: 0 | N35: 0 | O35: 0 | P35: 0 | Q35: 0 | R35: 0 | S35: 0 | T35: 0 | U35: 0 | V35: 0 | W35: 0 | X35: 0 | Y35: 0 | Z35: 0 | AA35: 0 | AB35: 0
B36: 2023-07-01 | C36: 0 | D36: 0 | E36: 0 | F36: 0 | G36: 0 | H36: 0 | I36: 0 | J36: 0 | K36: 0 | L36: 0 | M36: 0 | N36: 0 | O36: 0 | P36: 0 | Q36: 0 | R36: 0 | S36: 0 | T36: 0 | U36: 0 | V36: 0 | W36: 0 | X36: 0 | Y36: 0 | Z36: 0 | AA36: 0 | AB36: 0
B37: 2023-08-01 | C37: 0 | D37: 0 | E37: 0 | F37: 0 | G37: 0 | H37: 0 | I37: 0 | J37: 0 | K37: 0 | L37: 0 | M37: 0 | N37: 0 | O37: 0 | P37: 0 | Q37: 0 | R37: 0 | S37: 0 | T37: 0 | U37: 0 | V37: 0 | W37: 0 | X37: 0 | Y37: 0 | Z37: 0 | AA37: 0 | AB37: 0
B38: 2023-09-01 | C38: 0 | D38: 0 | E38: 0 | F38: 0 | G38: 0 | H38: 0 | I38: 0 | J38: 0 | K38: 0 | L38: 0 | M38: 0 | N38: 0 | O38: 0 | P38: 0 | Q38: 0 | R38: 0 | S38: 0 | T38: 0 | U38: 0 | V38: 0 | W38: 0 | X38: 0 | Y38: 0 | Z38: 0 | AA38: 0 | AB38: 0
B39: 2023-10-01 | C39: 0 | D39: 0 | E39: 0 | F39: 0 | G39: 0 | H39: 0 | I39: 0 | J39: 0 | K39: 0 | L39: 0 | M39: 0 | N39: 0 | O39: 0 | P39: 0 | Q39: 0 | R39: 0 | S39: 0 | T39: 0 | U39: 0 | V39: 0 | W39: 0 | X39: 0 | Y39: 0 | Z39: 0 | AA39: 0 | AB39: 0
B40: 2023-11-01 | C40: 0 | D40: 0 | E40: 0 | F40: 0 | G40: 0 | H40: 0 | I40: 0 | J40: 0 | K40: 0 | L40: 0 | M40: 0 | N40: 0 | O40: 0 | P40: 0 | Q40: 0 | R40: 0 | S40: 0 | T40: 0 | U40: 0 | V40: 0 | W40: 0 | X40: 0 | Y40: 0 | Z40: 0 | AA40: 0 | AB40: 0
B41: 2023-12-01 | C41: 0 | D41: 0 | E41: 0 | F41: 0 | G41: 0 | H41: 0 | I41: 0 | J41: 0 | K41: 0 | L41: 0 | M41: 0 | N41: 0 | O41: 0 | P41: 0 | Q41: 0 | R41: 0 | S41: 0 | T41: 0 | U41: 0 | V41: 0 | W41: 0 | X41: 0 | Y41: 0 | Z41: 0 | AA41: 0 | AB41: 0
B42: 2024-01-01 | C42: 0 | D42: 0 | E42: 0 | F42: 0 | G42: 0 | H42: 0 | I42: 0 | J42: 0 | K42: 0 | L42: 0 | M42: 0 | N42: 0 | O42: 0 | P42: 0 | Q42: 0 | R42: 0 | S42: 0 | T42: 0 | U42: 0 | V42: 0 | W42: 0 | X42: 0 | Y42: 0 | Z42: 0 | AA42: 0 | AB42: 0
B43: 2024-02-01 | C43: 0 | D43: 0 | E43: 0 | F43: 0 | G43: 0 | H43: 0 | I43: 0 | J43: 0 | K43: 0 | L43: 0 | M43: 0 | N43: 0 | O43: 0 | P43: 0 | Q43: 0 | R43: 0 | S43: 0 | T43: 0 | U43: 0 | V43: 0 | W43: 0 | X43: 0 | Y43: 0 | Z43: 0 | AA43: 0 | AB43: 0
B44: 2024-03-01 | C44: 0 | D44: 0 | E44: 0 | F44: 0 | G44: 0 | H44: 0 | I44: 0 | J44: 0 | K44: 0 | L44: 0 | M44: 0 | N44: 0 | O44: 0 | P44: 0 | Q44: 0 | R44: 0 | S44: 0 | T44: 0 | U44: 0 | V44: 0 | W44: 0 | X44: 0 | Y44: 0 | Z44: 0 | AA44: 0 | AB44: 0
B45: 2024-04-01 | C45: 0 | D45: 0 | E45: 0 | F45: 0 | G45: 0 | H45: 0 | I45: 0 | J45: 0 | K45: 0 | L45: 0 | M45: 0 | N45: 0 | O45: 0 | P45: 0 | Q45: 0 | R45: 0 | S45: 0 | T45: 0 | U45: 0 | V45: 0 | W45: 0 | X45: 0 | Y45: 0 | Z45: 0 | AA45: 0 | AB45: 0
B46: 2024-05-01 | C46: 0 | D46: 0 | E46: 0 | F46: 0 | G46: 0 | H46: 0 | I46: 0 | J46: 0 | K46: 0 | L46: 0 | M46: 0 | N46: 0 | O46: 0 | P46: 0 | Q46: 0 | R46: 0 | S46: 0 | T46: 0 | U46: 0 | V46: 0 | W46: 0 | X46: 0 | Y46: 0 | Z46: 0 | AA46: 0 | AB46: 0
B47: 2024-06-01 | C47: 0 | D47: 0 | E47: 0 | F47: 0 | G47: 0 | H47: 0 | I47: 0 | J47: 0 | K47: 0 | L47: 0 | M47: 0 | N47: 0 | O47: 0 | P47: 0 | Q47: 0 | R47: 0 | S47: 0 | T47: 0 | U47: 0 | V47: 0 | W47: 0 | X47: 0 | Y47: 0 | Z47: 0 | AA47: 0 | AB47: 0
B48: 2024-07-01 | C48: 0 | D48: 0 | E48: 0 | F48: 0 | G48: 0 | H48: 0 | I48: 0 | J48: 0 | K48: 0 | L48: 0 | M48: 0 | N48: 0 | O48: 0 | P48: 0 | Q48: 0 | R48: 0 | S48: 0 | T48: 0 | U48: 0 | V48: 0 | W48: 0 | X48: 0 | Y48: 0 | Z48: 0 | AA48: 0 | AB48: 0
B49: 2024-08-01 | C49: 0 | D49: 0 | E49: 0 | F49: 0 | G49: 0 | H49: 0 | I49: 0 | J49: 0 | K49: 0 | L49: 0 | M49: 0 | N49: 0 | O49: 0 | P49: 0 | Q49: 0 | R49: 0 | S49: 0 | T49: 0 | U49: 0 | V49: 0 | W49: 0 | X49: 0 | Y49: 0 | Z49: 0 | AA49: 0 | AB49: 0
B50: 2024-09-01 | C50: 0 | D50: 0 | E50: 0 | F50: 0 | G50: 0 | H50: 0 | I50: 0 | J50: 0 | K50: 0 | L50: 0 | M50: 0 | N50: 0 | O50: 0 | P50: 0 | Q50: 0 | R50: 0 | S50: 0 | T50: 0 | U50: 0 | V50: 0 | W50: 0 | X50: 0 | Y50: 0 | Z50: 0 | AA50: 0 | AB50: 0
B51: 2024-10-01 | C51: 0 | D51: 0 | E51: 0 | F51: 0 | G51: 0 | H51: 0 | I51: 0 | J51: 0 | K51: 0 | L51: 0 | M51: 0 | N51: 0 | O51: 0 | P51: 0 | Q51: 0 | R51: 0 | S51: 0 | T51: 0 | U51: 0 | V51: 0 | W51: 0 | X51: 0 | Y51: 0 | Z51: 0 | AA51: 0 | AB51: 0
B52: 2024-11-01 | C52: 0 | D52: 0 | E52: 0 | F52: 0 | G52: 0 | H52: 0 | I52: 0 | J52: 0 | K52: 0 | L52: 0 | M52: 0 | N52: 0 | O52: 0 | P52: 0 | Q52: 0 | R52: 0 | S52: 0 | T52: 0 | U52: 0 | V52: 0 | W52: 0 | X52: 0 | Y52: 0 | Z52: 0 | AA52: 0 | AB52: 0
B53: 2024-12-01 | C53: 0 | D53: 0 | E53: 0 | F53: 0 | G53: 0 | H53: 0 | I53: 0 | J53: 0 | K53: 0 | L53: 0 | M53: 0 | N53: 0 | O53: 0 | P53: 0 | Q53: 0 | R53: 0 | S53: 0 | T53: 0 | U53: 0 | V53: 0 | W53: 0 | X53: 0 | Y53: 0 | Z53: 0 | AA53: 0 | AB53: 0
B54: 2025-01-01 | C54: 0 | D54: 0 | E54: 0 | F54: 0 | G54: 0 | H54: 0 | I54: 0 | J54: 0 | K54: 0 | L54: 0 | M54: 0 | N54: 0 | O54: 0 | P54: 0 | Q54: 0 | R54: 0 | S54: 0 | T54: 0 | U54: 0 | V54: 0 | W54: 0 | X54: 0 | Y54: 0 | Z54: 0 | AA54: 0 | AB54: 0
B55: 2025-02-01 | C55: 0 | D55: 0 | E55: 0 | F55: 0 | G55: 0 | H55: 0 | I55: 0 | J55: 0 | K55: 0 | L55: 0 | M55: 0 | N55: 0 | O55: 0 | P55: 0 | Q55: 0 | R55: 0 | S55: 0 | T55: 0 | U55: 0 | V55: 0 | W55: 0 | X55: 0 | Y55: 0 | Z55: 0 | AA55: 0 | AB55: 0
B56: 2025-03-01 | C56: 0 | D56: 0 | E56: 0 | F56: 0 | G56: 0 | H56: 0 | I56: 0 | J56: 0 | K56: 0 | L56: 0 | M56: 0 | N56: 0 | O56: 0 | P56: 0 | Q56: 0 | R56: 0 | S56: 0 | T56: 0 | U56: 0 | V56: 0 | W56: 0 | X56: 0 | Y56: 0 | Z56: 0 | AA56: 0 | AB56: 0
B57: 2025-04-01 | C57: 0 | D57: 0 | E57: 0 | F57: 0 | G57: 0 | H57: 0 | I57: 0 | J57: 0 | K57: 0 | L57: 0 | M57: 0 | N57: 0 | O57: 0 | P57: 0 | Q57: 0 | R57: 0 | S57: 0 | T57: 0 | U57: 0 | V57: 0 | W57: 0 | X57: 0 | Y57: 0 | Z57: 0 | AA57: 0 | AB57: 0
B58: 2025-05-01 | C58: 0 | D58: 0 | E58: 0 | F58: 0 | G58: 0 | H58: 0 | I58: 0 | J58: 0 | K58: 0 | L58: 0 | M58: 0 | N58: 0 | O58: 0 | P58: 0 | Q58: 0 | R58: 0 | S58: 0 | T58: 0 | U58: 0 | V58: 0 | W58: 0 | X58: 0 | Y58: 0 | Z58: 0 | AA58: 0 | AB58: 0
B59: 2025-06-01 | C59: 0 | D59: 0 | E59: 0 | F59: 0 | G59: 0 | H59: 0 | I59: 0 | J59: 0 | K59: 0 | L59: 0 | M59: 0 | N59: 0 | O59: 0 | P59: 0 | Q59: 0 | R59: 0 | S59: 0 | T59: 0 | U59: 0 | V59: 0 | W59: 0 | X59: 0 | Y59: 0 | Z59: 0 | AA59: 0 | AB59: 0
B60: 2025-07-01 | C60: 0 | D60: 0 | E60: 0 | F60: 0 | G60: 0 | H60: 0 | I60: 0 | J60: 0 | K60: 0 | L60: 0 | M60: 0 | N60: 0 | O60: 0 | P60: 0 | Q60: 0 | R60: 0 | S60: 0 | T60: 0 | U60: 0 | V60: 0 | W60: 0 | X60: 0 | Y60: 0 | Z60: 0 | AA60: 0 | AB60: 0
B61: 2025-08-01 | C61: 0 | D61: 0 | E61: 0 | F61: 0 | G61: 0 | H61: 0 | I61: 0 | J61: 0 | K61: 0 | L61: 0 | M61: 0 | N61: 0 | O61: 0 | P61: 0 | Q61: 0 | R61: 0 | S61: 0 | T61: 0 | U61: 0 | V61: 0 | W61: 0 | X61: 0 | Y61: 0 | Z61: 0 | AA61: 0 | AB61: 0
B62: 2025-09-01 | C62: 0 | D62: 0 | E62: 0 | F62: 0 | G62: 0 | H62: 0 | I62: 0 | J62: 0 | K62: 0 | L62: 0 | M62: 0 | N62: 0 | O62: 0 | P62: 0 | Q62: 0 | R62: 0 | S62: 0 | T62: 0 | U62: 0 | V62: 0 | W62: 0 | X62: 0 | Y62: 0 | Z62: 0 | AA62: 0 | AB62: 0
B63: 2025-10-01 | C63: 0 | D63: 0 | E63: 0 | F63: 0 | G63: 0 | H63: 0 | I63: 0 | J63: 0 | K63: 0 | L63: 0 | M63: 0 | N63: 0 | O63: 0 | P63: 0 | Q63: 0 | R63: 0 | S63: 0 | T63: 0 | U63: 0 | V63: 0 | W63: 0 | X63: 0 | Y63: 0 | Z63: 0 | AA63: 0 | AB63: 0
B64: 2025-11-01 | C64: 0 | D64: 0 | E64: 0 | F64: 0 | G64: 0 | H64: 0 | I64: 0 | J64: 0 | K64: 0 | L64: 0 | M64: 0 | N64: 0 | O64: 0 | P64: 0 | Q64: 0 | R64: 0 | S64: 0 | T64: 0 | U64: 0 | V64: 0 | W64: 0 | X64: 0 | Y64: 0 | Z64: 0 | AA64: 0 | AB64: 0
B65: 2025-12-01 | C65: 0 | D65: 0 | E65: 0 | F65: 0 | G65: 0 | H65: 0 | I65: 0 | J65: 0 | K65: 0 | L65: 0 | M65: 0 | N65: 0 | O65: 0 | P65: 0 | Q65: 0 | R65: 0 | S65: 0 | T65: 0 | U65: 0 | V65: 0 | W65: 0 | X65: 0 | Y65: 0 | Z65: 0 | AA65: 0 | AB65: 0
B66: 2026-01-01 | C66: 0 | D66: 0 | E66: 0 | F66: 0 | G66: 0 | H66: 0 | I66: 0 | J66: 0 | K66: 0 | L66: 0 | M66: 0 | N66: 0 | O66: 0 | P66: 0 | Q66: 0 | R66: 0 | S66: 0 | T66: 0 | U66: 0 | V66: 0 | W66: 0 | X66: 0 | Y66: 0 | Z66: 0 | AA66: 0 | AB66: 0
B67: 2026-02-01 | C67: 0 | D67: 0 | E67: 0 | F67: 0 | G67: 0 | H67: 0 | I67: 0 | J67: 0 | K67: 0 | L67: 0 | M67: 0 | N67: 0 | O67: 0 | P67: 0 | Q67: 0 | R67: 0 | S67: 0 | T67: 0 | U67: 0 | V67: 0 | W67: 0 | X67: 0 | Y67: 0 | Z67: 0 | AA67: 0 | AB67: 0
B68: 2026-03-01 | C68: 0 | D68: 0 | E68: 0 | F68: 0 | G68: 0 | H68: 0 | I68: 0 | J68: 0 | K68: 0 | L68: 0 | M68: 0 | N68: 0 | O68: 0 | P68: 0 | Q68: 0 | R68: 0 | S68: 0 | T68: 0 | U68: 0 | V68: 0 | W68: 0 | X68: 0 | Y68: 0 | Z68: 0 | AA68: 0 | AB68: 0
B69: 2026-04-01 | C69: 0 | D69: 0 | E69: 0 | F69: 0 | G69: 0 | H69: 0 | I69: 0 | J69: 0 | K69: 0 | L69: 0 | M69: 0 | N69: 0 | O69: 0 | P69: 0 | Q69: 0 | R69: 0 | S69: 0 | T69: 0 | U69: 0 | V69: 0 | W69: 0 | X69: 0 | Y69: 0 | Z69: 0 | AA69: 0 | AB69: 0
B70: 2026-05-01 | C70: 0 | D70: 0 | E70: 0 | F70: 0 | G70: 0 | H70: 0 | I70: 0 | J70: 0 | K70: 0 | L70: 0 | M70: 0 | N70: 0 | O70: 0 | P70: 0 | Q70: 0 | R70: 0 | S70: 0 | T70: 0 | U70: 0 | V70: 0 | W70: 0 | X70: 0 | Y70: 0 | Z70: 0 | AA70: 0 | AB70: 0
B71: 2026-06-01 | C71: 0 | D71: 0 | E71: 0 | F71: 0 | G71: 0 | H71: 0 | I71: 0 | J71: =SUM(G71:I71) -> 0 | K71: =C71-G71 -> 0 | L71: =D71-H71 -> 0 | M71: =E71-I71 -> 0 | N71: =SUM(K71:M71) -> 0 | O71: 0 | P71: 0 | Q71: =O71-P71 -> 0 | R71: 0 | S71: 0 | T71: =R71-S71 -> 0 | U71: 0 | V71: 0 | W71: =U71-V71 -> 0 | X71: 0 | Y71: 0 | Z71: =X71-Y71 -> 0 | AA71: =Q71+T71+W71+Z71 -> 0 | AB71: =N71-AA71 -> 0
B72: 2026-07-01 | C72: 0 | D72: 0 | E72: 0 | F72: =SUM(C72:E72) -> 0 | G72: 0 | H72: 0 | I72: 0 | J72: 0 | K72: 0 | L72: 0 | M72: 0 | N72: 0 | O72: 0 | P72: 0 | Q72: 0 | R72: 0 | S72: 0 | T72: 0 | U72: 0 | V72: 0 | W72: 0 | X72: 0 | Y72: 0 | Z72: 0 | AA72: 0 | AB72: 0
B73: 2026-08-01 | C73: 0 | D73: 0 | E73: 0 | F73: 0 | G73: 0 | H73: 0 | I73: 0 | J73: 0 | K73: 0 | L73: 0 | M73: 0 | N73: 0 | O73: 0 | P73: 0 | Q73: 0 | R73: 0 | S73: 0 | T73: 0 | U73: 0 | V73: 0 | W73: 0 | X73: 0 | Y73: 0 | Z73: 0 | AA73: 0 | AB73: 0
B74: 2026-09-01 | C74: 0 | D74: 0 | E74: 0 | F74: 0 | G74: 0 | H74: 0 | I74: 0 | J74: 0 | K74: 0 | L74: 0 | M74: 0 | N74: 0 | O74: 0 | P74: 0 | Q74: 0 | R74: 0 | S74: 0 | T74: 0 | U74: 0 | V74: 0 | W74: 0 | X74: 0 | Y74: 0 | Z74: 0 | AA74: 0 | AB74: 0
B75: 2026-10-01 | C75: 0 | D75: 0 | E75: 0 | F75: 0 | G75: 0 | H75: 0 | I75: 0 | J75: 0 | K75: 0 | L75: 0 | M75: 0 | N75: 0 | O75: 0 | P75: 0 | Q75: 0 | R75: 0 | S75: 0 | T75: 0 | U75: 0 | V75: 0 | W75: 0 | X75: 0 | Y75: 0 | Z75: 0 | AA75: 0 | AB75: 0
B76: 2026-11-01 | C76: 0 | D76: 0 | E76: 0 | F76: 0 | G76: 0 | H76: 0 | I76: 0 | J76: 0 | K76: 0 | L76: 0 | M76: 0 | N76: 0 | O76: 0 | P76: 0 | Q76: 0 | R76: 0 | S76: 0 | T76: 0 | U76: 0 | V76: 0 | W76: 0 | X76: 0 | Y76: 0 | Z76: 0 | AA76: 0 | AB76: 0
B77: 2026-12-01 | C77: 0 | D77: 0 | E77: 0 | F77: 0 | G77: 0 | H77: 0 | I77: 0 | J77: 0 | K77: 0 | L77: 0 | M77: 0 | N77: 0 | O77: 0 | P77: 0 | Q77: 0 | R77: 0 | S77: 0 | T77: 0 | U77: 0 | V77: 0 | W77: 0 | X77: 0 | Y77: 0 | Z77: 0 | AA77: 0 | AB77: 0
B78: Total | C78: =SUM(C6:C77) -> 533900 | D78: =SUM(D6:D77) -> 125273 | E78: 45177 | F78: 704350 | G78: 503100 | H78: 118077 | I78: 42573 | J78: 663750 | K78: 30800 | L78: 7196 | M78: 2604 | N78: 40600 | O78: 52056 | P78: 50880 | Q78: 1176 | R78: 0 | S78: 0 | T78: 0 | U78: 7238 | V78: 7238 | W78: 0 | X78: 4060 | Y78: 0 | Z78: 4060 | AA78: 5236 | AB78: 35364
AB79: ="Net payable amount in words "&SpellIndian(AB78) -> Net payable amount in words Rupees Thirty Five Thousand Three Hundred Sixty Four Only
B80: izek.khdj.k %
B81: 1- izekf.kr fd;k tkrk gS fd bl osru varj fooj.k izi= dk ;ksx QykoV tkWp fy;k x;k gS tks lgh gSA
B82: 2- izekf.kr fd;k tkrk gS fd bl fcy dk Hkqxrku iwoZ esa ugha mBk;k x;k gS vkSj uk gh mBk;k tkosxkA
B83: 3- izekf.kr fd;k tkrk gS fd lkekU; foÙkh; ,oa ys[kk fu;e vuqlkj jkf'k dk dk;kZy; fjdkWMZ esa bUnzkt dj fn;k x;k gSA
B84: 4- izekf.kr fd;k tkrk gS fd vk;dj vf/kfu;e 1961 ds fu;e vuqlkj vk;dj dh dVkSrh dj nh x;h gSA
AB86: DDO's Signature with Official SEAL
